Workbook

Sheet Instructions
B2: INSTRUCTIONS VERSION 5
B4: These instructions are intended to provide guidance to users of this spreadsheet. USE THIS SPREADSHEET ONLY FOR INORGANIC NUTRIENT PLANS!
B5: This version includes several improvements to the previous version. There are five primary changes plus numerous small fixes. The primary changes are:
B6: 1. Adds the Topdressing amount that A&M requires as part of Grass Establishment.
B7: 2. Fixes the cross reference error relative to the Purpose identified on the Entry Sheet and the printouts.
B8: 3. Cleans up the formulas on the bottom of the Entry Sheet.
B9: 4. Provides a way to view the Establishment Year only.
B10: 5. Provides a way to print the Establishment Year only.
B11: Use PgDn, PgUp, Up Arrow, Down Arrow keys on the keyboard or the Vertical Scroll bar to view the full set of instructions.
B12: The input sheet consists of several sections : 1) Heading ( Landuser, field number, assisted by, year 1 of plan, and rainfall plus irrigation amount); 2) Purpose ( Optimum yield, quick cover, water quality, soil condition ); 3) Targeted Use (Crop, grass establishment, or grass production); 4) Soil test Analysis Method must be Mehlich III with ICP (Inductively Coupled Plasma) to meet the Standard requirements. 5) The soil test results including at a minimum pH, N, P, and K. 6) Crop or grass species and yield goal (establishment, year 1, year 2, year 3, year 4 and year 5 as appropriate ); 7) Maximum amount recommended in pounds per acre - ( N, P, K, and Lime ); 8) Command buttons for use in clearing data, navagation between worksheet areas, and printing worksheets; 9) Credits ( Allows for entry of nutrient credits from other sources; 10) A specification section is available for each year of the plan to address specfications relative to method, form, timing of application.
B13: The length of the plan (3 year or 5 years) is determined by the rainfall + irrigation amount. The standard indicates that when this amount is greater than 25", then a 3 year plan will be developed and when it is less than 25", a 5 year plan is to be developed. The information that you enter will automatically be directed to a 3 year printout or a 5 year printout based on the rainfall amount that you enter.
B14: Yellow cells require data for proper operation of the worksheet. While progressing through data input, the number of yellow cells changes. However, all yellow cells must be completed except for the Lime cells. Enter the amount of lime if the soil test indicates that lime is needed. At least 1 cell in the purpose group must be marked. More than one may be marked if applicable. Green cells are for optional use.
B15: HEADING - enter the name of the landuser, field number, name of person providing assistance, the first year of the plan, and the county rainfall average PLUS any irrigation in inches.
B16: PURPOSE - Select any or all that apply. This section indicates the portion of the standard that you are addressing. Normally, the optimum yield will be marked. Marks are made by clicking on the box with the X . If you make a mistake and want to erase the mark, click on the box with the < sign beside of the cell.
B17: LANDUSE - Select either crop, grass establishment, or grass production.
B18: SOIL TEST METHOD - Any soil laboratory results will be accepted provided the phosphorus extraction method is acceptable. The only approved and acceptable phosphorus extraction method in Texas is Mehlich III with ICP (Inductively Coupled Plasma).
B19: SOIL TEST DATA - Identify the soil test method. ONLY MEHLICH III with ICP is acceptable according to the Standard. If you do not know the method, the appropriate lab must be contacted and that information must be obtained. The program will take you to the proper cell to enter the soil test data in the yellow cells. Enter the N,P,K, and pH from the soil test results.
B20: CROP OR GRASS SPECIES AND YIELD GOAL - This area allows for the user to define the crop or grass species and the producer's yield goal. Drop down boxes with vertical scroll bars allow for selection from a list. If an error in selection is made, simply make the proper reselection. The program will clear the previous selection. Select the proper crop and yield for each of the required three or five years.
B21: If any required data is missing, the crop selection cell will turn red and have the message "Data Missing". Check the Purpose, Landuse, Soil Test Data and Crop section, you have left something out.
B22: MAXIMUM AMOUNT RECOMMENDED IN LBS / AC - The N, P, and K are computed based on soil test results and on crop or grass species and yield goal. The cell for Lime - Ton(s) allows for input of a lime application recommendation. It will turn yellow indicating that an entry may be needed if the pH is below 6.0. When there is a lime recommendation, enter that amount in the appropriate cell.
B23: The column labeled as TOPDRESS N FOR ESTABLISHMENT is new to this version. Whenever grass establishment has been checked and identified as the Land Use, an amount will automatically be entered based on the soil test data. This amount is required as the topdressing portion of the grass establishment before the establishment is complete. This amount is in addition to that amount shown in the column labeled "N". This amount also shows up in RED on the SPECS sheet in Year 1 immediately under the row labeled "RECOMMENDED NUTRIENT APPPLICATION TO MEET YIELD GOAL:". This calls your attention to the fact that this amount needs to be discussed in your discussion in the SPECIFICATION sectiion labeled "METHOD, FORM, AND TIMING".
B24: CREDITS - Allows for entry of nutrient credits from other sources. There is a credit section available for each year.
B25: SPECS - These are the specification sections, one for each year. Use this section to describe how fertilizer will be applied, timing of application, split applications, lime application, etc.
B26: NITROGEN TIMING - When the production target is higher than the minimum amount, the total amount of nitrogen has already been adjusted on the following crops to reflect the higher production. The following is the normal A&M recommendation for split-application of the nitrogen. There is a drop-down menu at the top of each specification screen (Split Application Suggestions). Click on the down arrow button to the right and you can quickly refer to this information.
B28: Species | F28: Apply units of N
B29: =Database!B702 -> 0 | F29: =Database!F702 -> 0
B30: =Database!B703 -> 0 | F30: =Database!F703 -> 0
B31: =Database!B704 -> 0 | F31: =Database!F704 -> 0
B32: =Database!B705 -> 0 | F32: =Database!F705 -> 0
B33: =Database!B706 -> 0 | F33: =Database!F706 -> 0
B34: =Database!B707 -> 0 | F34: =Database!F707 -> 0
B35: =Database!B708 -> 0 | F35: =Database!F708 -> 0
B36: =Database!B709 -> 0 | F36: =Database!F709 -> 0
B37: =Database!B710 -> 0 | F37: =Database!F710 -> 0
B38: =Database!B711 -> 0 | F38: =Database!F711 -> 0
B39: =Database!B712 -> 0 | F39: =Database!F712 -> 0
B40: =Database!B713 -> 0 | F40: =Database!F713 -> 0
B41: POTASSIUM TIMING - Any time more than 150 # of K20 is to be applied, it should be split-applied.
B42: COMMAND BUTTONS - The command buttons allow a mouse click to perform complicated tasks. The buttons and their actions are described below.
B43: CLEAR ALL - Clicking this button clears ALL data. Use it to clear a previous job during the same session and prior to exiting. By doing this, you will have a clean sheet to start with for the next plan. This button has a safety feature. When you click this button, it gives you a chance to cancel, in case you clicked the button by accident. If you answer the question with a YES, then it will continue to clear the sheet. If you answer NO, then it will not clear the sheet and will take you back to where you were. Hopefully, this will help people to avoid erasing data accidently and having to re-enter it.
B44: ENTER CREDITS - Navigates to the credits section of the worksheet for the appropriate year.
B45: EDIT SPECS YEAR 1 - Navigates to the specifications section of the worksheet that is specific to year 1.
B46: EDIT SPECS YEAR 2 - Navigates to the specifications section of the worksheet that is specific to year 2.
B47: EDIT SPECS YEAR 3 - Navigates to the specifications section of the worksheet that is specific to year 3.
B48: EDIT SPECS YEAR 4 - Navigates to the specifications section of the worksheet that is specific to year 4.
B49: EDIT SPECS YEAR 5 - Navigates to the specifications section of the worksheet that is specific to year 5.
B50: PRINT - When you press the print button, you will be asked if you want to print the Establishment Year, if this is a Nutrient Management Plan for Establishment only, then you would click the YES button and it will proceed by asking if you want to print the O&M sheet. If you click NO, you are indicating that this nutrient management plan is for 3 or 5 years based on where you are located and it will then ask the question relative to the O&M sheet. If you indicate YES and have not checked ESTABLISHMENT for the Land Use, you will get an error message and it will abort. You will simply need to go back and correct the Land Use box and try again. You will only need to print the O&M sheet one time for each plan. So if you have 5 fields, you will print 1 O&M sheet plus 1 sheet for each individual soil test (field) that you have. In this case, you will end up with 6 sheets. Do not try to print using the File, Print Menus. If you do, your printed copy will not be formated correctly and will not fit on a page properly. This macro sets the print options correctly.
B51: VIEW JOBSHEET - Navigates to the proper jobsheet (Establishment Year, 3 year or 5 year) for a preview by the user if needed. A button is provided to navigate back to the Entry Sheet. No entry is allowed on the jobsheet itself. All entries are done on the Entry Sheet.
B52: EXIT - Use this button to exit the program. It puts all standard bars, such as headers, status, etc. back on the standard EXCEL spreadsheet. It also saves the worksheet in its current condition.
B53: Draw the sketch of the field(s) involved and show any and all sensitive areas. Show drainage ditches, roads, houses, and other features that may be important to locating the site and/or other considerations that may be applicable to the plan including sensitive features..
B54: The generic plan narrative in the conservation plan, the first two pages of the Nutrient Management Jobsheet giving the generic information and this printout along with a copy of the soil test results should be sufficient for the nutrient management component of the conservation plan.
B55: This spreadsheet and jobsheet is to be used as INTERIM guidance until a better method has been developed. This spreadsheet utilizes the Texas NRCS June 2000 Nutrient Management Standard as the basis. This jobsheet utilizes the soil test conversion methods specified in Appendix 3 of the Standard and this spreadsheet also utilizes the A&M crop recommendations found at the Texas A&M website as defined in the Standard. The information found on the website has been converted into a database for lookup tables in this spreadsheet. The basic database in this spreadsheet MUST BE KEPT CURRENT by monitoring the A&M website. There should not be more than a 5 pound difference of any nutrient recommendation between this jobsheet and the TAMU recommendation for the same species and yield goal. This 5 pound difference will generally be due to the "rounding" of numbers. This program rounds to the nearest 5 pounds using standard rounding protocols.
B56: If anyone finds that the crop recommendations at the Texas A&M website differs more than 5 pounds from what is in this spreadsheet, PLEASE let me know as soon as possible. For additional information, feel free to contact me, Jim Childers, office- 361-241-0609, FAX- 361-241-0609, mobile - 361-813-4911 or email jim.childers@tx.usda.gov
B58: Jim Childers
B59: USDA-NRCS
B60: Zone Conservation Agronomist
B61: Corpus Christi

Sheet Edits (hidden)
A1: Date | B1: Initials | C1: Summary of Changes
A2: 2004-08-20 | B2: JRC | C2: Received the new Mehlich III "P" formulas from Sam Feagley.
A3: 2004-09-09 | B3: JRC | C3: Finally figured out the new "P" formulas. Began entering the "P" rates and the "P" factors into the database sheet. Updated the soil test conversion formulas on the various sheets to match the Soil Test Conversion "stand alone" spreadsheet. This included changing the TAMU P recommendation breakpoints to the new Mehlich III P breakpoints. Cleaned up the A&M sheet to only reflect the "P" lookup information.
A4: 2004-09-11 | B4: JRC | C4: Finalized the "P" formulas in the database to reflect the Mehlich III "P" rates, "P" factors and the P2O5 calculations. This included updating and modifying the Entry sheet references for the P2O5 recommendations.
A5: 2004-09-13 | B5: JRC | C5: Sent Tony Provin and Sam Feagley an email relative to the concerns for the cotton nitrogen recommendation which appears to have been changed from 50-75-100 # N to 40-60-80 # N for 1 bale, 1.5 bale and 2 bale cotton respectively and the potassium recommendation for improved bermudagrass establishment.
A6: 2004-09-23 | B6: JRC | C6: Received email from Tony Provin that the cotton should be 50-75-100 # N and that their program was wrong. Also, the K recommendation that I have is correct.
A7: 2004-10-21 | B7: JRC | C7: Corrected error on Entry Page in recommendation amounts.
A8: 2005-01-13 | B8: JRC | C8: Changed the breakpoints for TAMU P recommendations based on the new lab numbers.
A9: 2004-01-19 | B9: JRC | C9: On Jobsheet 1, 3 and 5, edited the formulas in the current soil test level blocks to correct error on Bray II results.
A10: 2005-01-31 | B10: JRC | C10: Corrected bermudagrass "K" factors in the Database according to current TAMU formulas. Corrected a few "N" factors to match current TAMU formulas. Left the budgeting process to zero out P and K in the second, third, fourth, and fifth years to the breakpoint between High/Very High. This is the same philsophy that was used previously. TAMU has different numbers on their Lab Report for Critical Level. Have not been able to get those exact numbers yet.
A11: 2005-02-24 | B11: JRC | C11: Corrected P error for 2-5 years to breakpoint 49/50
A12: 2005-02-26 | B12: JRC | C12: Added A&M rating on TAMU and Mehlich III sheets. Change breakpoint references for Nutrient budgets of P and K to actual cells rather than hard numbers to simplify future edits of breakpoint changes. Edited Database to match TAMU Lab formulas. Edited formulas on Entry sheet for 2-5 years for K.
A13: 2005-02-27 | B13: JRC | C13: Corrected P formulas for Rice, Alfalfa, Blueberries and Ryegrass due to change from Texas Juice to Mehlich III with ICP.
A14: 2005-04-06 | B14: JRC | C14: Corrected all N, P, and K formulas to match the Soil Lab formulas. The charts on the Web site are not accurate for K for bermudagrass.
A15: 2005-05-04 | B15: JRC | C15: Corrected N formulas for budgeting for second - fifth years.
A16: 2005-06-21 | B16: JRC | C16: Corrected Olsen's conversion Very High Phosphorus lookup column.
A17: 2005-06-21 | B17: JRC | C17: Updated N recommendations to match the CNMP worksheet.
A18: 2005-06-21 | B18: JRC | C18: Deleted Soil Test Conversions entry options and other information as well as macros for those conversions. Sheet now only accepts Mehlich III. Edited Clear All macro to take out cell and macro references to other types of Soil Analyses.
A19: 2005-07-16 | B19: jrc | C19: edited the database column A. Numbers were out of order.

Sheet Fixes
A1: Most current fixes:
A3: 2006-04-10 | B3: fixed the "Bermudagrass, Common, Hay (1 cutting + grazing)" Max N rate. Changed from 11 to 70.
A4: 2006-05-08 | B4: fixed soybeans
A5: 2007-03-01 | B5: Forage numbers revised based on TAMU, Forage N recs. posted 12/11/06, Forage P recs. posted 11/29/06, and Forage K recs. posted 12/11/06
A6: 2007-03-19 | B6: Unhid jobsheet sheets. Print macro does not work right with them hidden.
A7: 2007-03-20 | B7: Fixed wheat grain only crops so they work properly.
A8: 2007-04-17 | B8: Added updated P numbers for corn, cotton, and grain sorghum
A9: 2011-02-23 | B9: Fixed Corn K numbers.

Sheet Entry
A1: Landuser | C1: example | E1: Purpose | G1: Landuse | S1: =IF(OR($R$27=Database!$B$218,$R$27=Database!$B$219,$R$27=Database!$B$220,$R$27=Database!$B$221,$R$27=Database!$B$222,$R$27=Database!$B$223,$R$27=Database!$B$224,$R$27=Database!$B$225),1,0) -> 0 | T1: =IF(OR($R$31=Database!$B$218,$R$31=Database!$B$219,$R$31=Database!$B$220,$R$31=Database!$B$221,$R$31=Database!$B$222,$R$31=Database!$B$223,$R$31=Database!$B$224,$R$31=Database!$B$225),1,0) -> 0
A2: Field Number | C2: 1 | E2: Optimum Yield .. | F2: =IF(P2="","",P2) -> x | G2: Crops | H2: =IF(O2="","",O2) -> x | O2: x | P2: x | S2: =IF(OR($R$27=Database!$B$5,$R$27=Database!#REF!,$R$27=Database!$B$6,$R$27=Database!$B$7),1,0) ->  | T2: =IF(OR($R$31=Database!$B$5,$R$31=Database!#REF!,$R$31=Database!$B$6,$R$31=Database!$B$7),1,0) -> 
A3: Assisted By | E3: Quick Cover ….. | F3: =IF(P3="","",P3) ->  | G3: Grass Est. | H3: =IF(O3="","",O3) ->  | S3: =IF(OR($R$27=Database!$B$230,$R$27=Database!$B$231),1,0) -> 0 | T3: =IF(OR($R$31=Database!$B$230,$R$31=Database!$B$231),1,0) -> 0
A4: Year 1 of plan | C4: 2007 | E4: Water Quality…. | F4: =IF(P4="","",P4) ->  | G4: Forage | H4: =IF(O4="","",O4) ->  | S4: =IF($R$27=Database!$B$73,1,0) -> 0 | T4: =IF($R$31=Database!$B$73,1,0) -> 0
A5: Rainfall Inches | C5: 45 | E5: Soil Condition…. | F5: =IF(P5="","",P5) ->  | O5: =COUNTA(O2:O4,P2:P4,P7:P11) -> 3
A6: Soil Test | E6: Inorganic Fertilizers Only (Version 6) | O6: =COUNT(TAMU!A3:D3) -> 4 | S6: =SUM(S1:S4) ->  | T6: =SUM(T1:T4) ->  | U6: (These formulas goto S5 and T5 if necessary)
A7: Mehlich III | C7: =IF(P7="","",P7) -> x | O7: =(TAMU!A3) -> 5.6 | P7: x
C8: =IF(P8="","",P8) -> 
C9: =IF(P9="","",P9) ->  | D9: Select Crop or Grass Species and Yield Goal (Year 4 and 5 are selected only if rainfall is < 25")
C10: =IF(P10="","",P10) ->  | L10: L | M10: M | N10: N | O10: O | Q10: Q | R10: R | S10: S | T10: T
C11: =IF(P11="","",P11) -> 
L12: =IF(COUNT($L$14:$L$21)>1,"error",COUNT($L$14:$L$21)) -> 1 | M12: =IF(COUNT($M$14:$M$21)>1,"error",COUNT($M$14:$M$21)) -> 1 | N12: =IF(COUNT($N$14:$N$21)>1,"error",COUNT($N$14:$N$21)) -> 1 | O12: =IF(COUNT($O$14:$O$21)>1,"error",COUNT($O$14:$O$21)) -> 0 | P12: =IF(COUNT($P$14:$P$21)>1,"error",COUNT($P$14:$P$21)) -> 0
L13: =COUNT(L14:L17) -> 0 | M13: =COUNT(M14:M17) -> 0 | N13: =COUNT(N14:N17) -> 1 | O13: =COUNT(O14:O17) -> 0 | P13: =COUNT(P14:P17) -> 0
Q14: establish
Q15: lawnandgarden
N16: 53 | Q16: forages
Q17: oil
Q18: veggies
L19: 13 | M19: 3 | Q19: rowcropsandgrain
E20: Max. Amt. Recommended ( # /Ac) | I20: TopDress N for Establishment | Q20: turf
A21: Crop / Grass Species Selected: | E21: N | F21: P | G21: K | H21: LIME(if any) | Q21: fiber | S21: Crop Req.
A22: =$C$4 -> 2007 | B22: =IF(AND(H4="",L16>1),"Not Grass Production",IF(AND($H$3="",$L$14>=1),"Not Establishment",IF($L$12="error","error",IF(AND($N$23="",$N$24=""),"No Selection Made",IF(AND($P$5<>"",$P$151<1),"Enter Crop Residue",IF(OR($O6<>4,$O$5<3),"Data Missing",IF($N$23<>"",$N$23,$N$24))))))) -> Corn 200 bu | E22: =IF(Specs!B4<>"",Specs!B4,IF(OR($B$22="Not Establishment",$B$22="Not Grass Production",$B$22="No Selection Made",$B$22="Data Missing"),"",IF(TAMU!$B$3="","",IF(AND($H$2="",$H$3="",$H$4=""),"",IF($L$12="error","error",IF($S$23="",IF(SUM($T$23-$E$44+$Q$131+$Q$133)>=0,FLOOR(($T$23-$E$44+$Q$131+$Q$133),5),0),IF(SUM($S$23-$E$44+$Q$131+$Q$133)>=0,FLOOR(($S$23-$E$44+$Q$131+$Q$133),5),0))))))) -> 245 | F22: =IF(Specs!C4<>"",Specs!C4,IF(OR($B$22="Not Establishment",$B$22="Not Grass Production",$B$22="No Selection Made",$B$22="Data Missing"),"",IF(TAMU!$C$3="","",IF(AND($H$2="",$H$3="",$H$4=""),"",IF($L$12="error","error",IF($S$24="",IF(SUM($T$24-$G$44)>=0,FLOOR(($T$24-$G$44),5),0),IF(SUM($S$24-$G$44)>=0,FLOOR(($S$24-$G$44),5),0))))))) -> 115 | G22: =IF(Specs!D4<>"",Specs!D4,IF(OR($B$22="Not Establishment",$B$22="Not Grass Production",$B$22="No Selection Made",$B$22="Data Missing"),"",IF(TAMU!$D$3="","",IF(AND($H$2="",$H$3="",$H$4=""),"",IF($L$12="error","error",IF($S$25="",IF(SUM($T$25-$I$44)>=0,FLOOR(($T$25-$I$44),5),0),IF(SUM($S$25-$I$44)>=0,FLOOR(($S$25-$I$44),5),0))))))) -> 120 | H22: 1 | I22: =IF(OR($B$22="Not Establishment",$B$22="Data Missing"),"",IF($L$14>0,VLOOKUP($L$14,establish,16),"")) ->  | L22: =COUNT(L18:L21) -> 1 | M22: =COUNT(M18:M21) -> 1 | N22: =COUNT(N18:N21) -> 0 | O22: =COUNT(O18:O21) -> 0 | P22: =COUNT(P18:P21) -> 0
A23: =$C$4+1 -> 2008 | B23: =IF($M$12="error","error",IF(AND($N$25="",$N$26=""),"No Selection Made",IF(AND($P$5<>"",$P$151<1),"Enter Crop Residue",IF(OR($O$6<>4,$O$5<3),"Data Missing",IF($N$25<>"",$N$25,$N$26))))) -> Corn 100 bu | E23: =IF($B$23="No Selection Made","",IF(TAMU!$B$3="","",IF(AND($H$2="",$H$3="",$H$4=""),"",IF($M$12="error","error",IF($S$27="",IF(SUM($T$27-$E$62+$Q$135+$Q$137)>=0,FLOOR(($T$27-$E$62+$Q$135+$Q$137),5),0),IF(SUM($S$27-$E$62+$Q$135+$Q$137)>=0,FLOOR(($S$27-$E$62+$Q$135+$Q$137),5),0)))))) -> 120 | F23: =IF($B$23="No Selection Made","",IF(TAMU!$C$3="","",IF(AND($H$2="",$H$3="",$H$4=""),"",IF($M$12="error","error",IF($S$28="",IF(SUM($T$28-$G$62)>=0,FLOOR(($T$28-$G$62),5),0),IF(SUM($S$28-$G$62)>=0,FLOOR(($S$28-$G$62),5),0)))))) -> 80 | G23: =IF($B$23="No Selection Made","",IF(TAMU!$D$3="","",IF(AND($H$2="",$H$3="",$H$4=""),"",IF($M$12="error","error",IF($S$29="",IF(SUM($T$29-$I$62)>=0,FLOOR(($T$29-$I$62),5),0),IF(SUM($S$29-$I$62)>=0,FLOOR(($S$29-$I$62),5),0)))))) -> 110 | M23: 1 | N23: =IF(OR($L$12="error",$L$12=0,$L$13=0),"",IF($L$14>0,VLOOKUP($L$14,establish,2),IF($L$15>0,VLOOKUP($L$15,lawnandgarden,2),IF($L$16>0,VLOOKUP($L$16,forages,2),IF($L$17>0,VLOOKUP($L$17,oil,2)))))) ->  | Q23: =IF($L$14>0,1,IF($L$15>0,2,IF($L$16>0,3,IF($L$17>0,4,IF($L$18>0,5,IF($L$19>0,6,IF($L$20>0,7,IF($L$21>0,8,"")))))))) -> 6 | R23: =IF($N$23<>"",$N$23,$N$24) -> Corn 200 bu | S23: =IF(Specs!B4<>"",Specs!B4,IF($Q$23=1,VLOOKUP($L$14,establish,6),IF($Q$23=2,VLOOKUP($L$15,lawnandgarden,6),IF($Q$23=3,VLOOKUP($L$16,forages,6),IF($Q$23=4,VLOOKUP($L$17,oil,6),""))))) ->  | T23: =IF($Q$23=5,VLOOKUP($L$18,veggies,6),IF($Q$23=6,VLOOKUP($L$19,rowcropsandgrain,6),IF($Q$23=7,VLOOKUP($L$20,turf,6),IF($Q$23=8,VLOOKUP($L$21,fiber,6),"")))) -> 246 | U23: N
A24: =$C$4+2 -> 2009 | B24: =IF($N12="error","error",IF(AND($N$27="",$N$28=""),"No Selection Made",IF(AND($P$5<>"",$P$151<1),"Enter Crop Residue",IF(OR($O$6<>4,$O$5<3),"Data Missing",IF($N$27<>"",$N$27,$N$28))))) -> Bermudagrass, Hyb, Hay 12000 lb | E24: =IF($B$24="No Selection Made","",IF(TAMU!$B$3="","",IF(AND($H$2="",$H$3="",$H$4=""),"",IF($N$12="error","error",IF($S$31="",IF(SUM($T$31-$E$80+$Q$139+$Q$141)>=0,FLOOR(($T$31-$E$80+$Q$139+$Q$141),5),0),IF(SUM($S$31-$E$80+$Q$139+$Q$141)>=0,FLOOR(($S$31-$E$80+$Q$139+$Q$141),5),0)))))) -> 300 | F24: =IF($B$24="No Selection Made","",IF(TAMU!$C$3="","",IF(AND($H$2="",$H$3="",$H$4=""),"",IF($N$12="error","error",IF($S$32="",IF(SUM($T$32-$G$80)>=0,FLOOR(($T$32-$G$80),5),0),IF(SUM($S$32-$G$80)>=0,FLOOR(($S$32-$G$80),5),0)))))) -> 140 | G24: =IF($B$24="No Selection Made","",IF(TAMU!$D$3="","",IF(AND($H$2="",$H$3="",$H$4=""),"",IF($N$12="error","error",IF($S$33="",IF(SUM($T$33-$I$80)>=0,FLOOR(($T$33-$I$80),5),0),IF(SUM($S$33-$I$80)>=0,FLOOR(($S$33-$I$80),5),0)))))) -> 250 | M24: 1 | N24: =IF(OR($L$12="error",$L$12=0,$L$22=0),"",IF($L$18>0,VLOOKUP($L$18,veggies,2),IF($L$19>0,VLOOKUP($L$19,rowcropsandgrain,2),IF($L$20>0,VLOOKUP($L$20,turf,2),IF($L$21>0,VLOOKUP($L$21,fiber,2)))))) -> Corn 200 bu | S24: =IF(Specs!C4<>"",Specs!C4,IF($Q$23=1,VLOOKUP($L$14,establish,9),IF($Q$23=2,VLOOKUP($L$15,lawnandgarden,9),IF($Q$23=3,VLOOKUP($L$16,forages,9),IF($Q$23=4,VLOOKUP($L$17,oil,9),""))))) ->  | T24: =IF($Q$23=5,VLOOKUP($L$18,veggies,9),IF($Q$23=6,VLOOKUP($L$19,rowcropsandgrain,9),IF($Q$23=7,VLOOKUP($L$20,turf,9),IF($Q$23=8,VLOOKUP($L$21,fiber,9),"")))) -> 117 | U24: P
A25: =$C$4+3 -> 2010 | B25: =IF($C$5>=25,"Do Not Select Crop",IF($O13="error","error",IF(AND($N$29="",$N$30=""),"No Selection Made",IF(AND($P$5<>"",$P$151<1),"Enter Crop Residue",IF(OR($O$6<>4,$O$5<3),"Data Missing",IF($N$29<>"",$N$29,$N$30)))))) -> Do Not Select Crop | E25: =IF($B$25="No Selection Made","",IF($C$5>=25,"",IF(TAMU!$B$3="","",IF(AND($H$2="",$H$3="",$H$4=""),"",IF($O$12="error","error",IF($S$35="",IF(SUM($T$35-$E$98+$Q$143+$Q$145)>=2.5,CEILING(($T$35-$E$98+$Q$143+$Q$145)-2.5,5),0),IF(SUM($S$35-$E$98+$Q$143+$Q$145)>=2.5,CEILING(($S$35-$E$98+$Q$143+$Q$145)-2.5,5),0))))))) ->  | F25: =IF($B$25="No Selection Made","",IF($C$5>=25,"",IF(TAMU!$C$3="","",IF(AND($H$2="",$H$3="",$H$4=""),"",IF($O$12="error","error",IF($S$36="",IF(SUM($T$36-$G$98)>=2.5,CEILING(($T$36-$G$98)-2.5,5),0),IF(SUM($S$36-$G$98)>=2.5,CEILING(($S$36-$G$98)-2.5,5),0))))))) ->  | G25: =IF($B$25="No Selection Made","",IF($C$5>=25,"",IF(TAMU!$D$3="","",IF(AND($H$2="",$H$3="",$H$4=""),"",IF($O$12="error","error",IF($S$37="",IF(SUM($T$37-$I$98)>=2.5,CEILING(($T$37-$I$98)-2.5,5),0),IF(SUM($S$37-$I$98)>=2.5,CEILING(($S$37-$I$98)-2.5,5),0))))))) ->  | M25: 2 | N25: =IF(OR($M$12="error",$M$12=0,$M$13=0),"",IF($M$14>0,VLOOKUP($M$14,establish,2),IF($M$15>0,VLOOKUP($M$15,lawnandgarden,2),IF($M$16>0,VLOOKUP($M$16,forages,2),IF($M$17>0,VLOOKUP($M$17,oil,2)))))) ->  | S25: =IF(Specs!D4<>"",Specs!D4,IF($Q$23=1,VLOOKUP($L$14,establish,12),IF($Q$23=2,VLOOKUP($L$15,lawnandgarden,12),IF($Q$23=3,VLOOKUP($L$16,forages,12),IF($Q$23=4,VLOOKUP($L$17,oil,12),""))))) ->  | T25: =IF($Q$23=5,VLOOKUP($L$18,veggies,12),IF($Q$23=6,VLOOKUP($L$19,rowcropsandgrain,12),IF($Q$23=7,VLOOKUP($L$20,turf,12),IF($Q$23=8,VLOOKUP($L$21,fiber,12),"")))) -> 120.8 | U25: K
A26: =$C$4+4 -> 2011 | B26: =IF($C$5>=25,"Do Not Select Crop",IF($P14="error","error",IF(AND($N$31="",$N$32=""),"No Selection Made",IF(AND($P$5<>"",$P$151<1),"Enter Crop Residue",IF(OR($O$6<>4,$O$5<3),"Data Missing",IF($N$31<>"",$N$31,$N$32)))))) -> Do Not Select Crop | E26: =IF($B$26="No Selection Made","",IF($C$5>=25,"",IF(TAMU!$B$3="","",IF(AND($H$2="",$H$3="",$H$4=""),"",IF($P$12="error","error",IF($S$39="",IF(SUM($T$39-$E$116+$Q$147+$Q$149)>=2.5,CEILING(($T$39-$E$116+$Q$147+$Q$149)-2.5,5),0),IF(SUM($S$39-$E$116+$Q$147+$Q$149)>=2.5,CEILING(($S$39-$E$116+$Q$147+$Q$149)-2.5,5),0))))))) ->  | F26: =IF($B$26="No Selection Made","",IF($C$5>=25,"",IF(TAMU!$C$3="","",IF(AND($H$2="",$H$3="",$H$4=""),"",IF($P$12="error","error",IF($S$40="",IF(SUM($T$40-$G$116+$Q$131+$Q$133)>=2.5,CEILING(($T$40-$G$116+$Q$131+$Q$133)-2.5,5),0),IF(SUM($S$40-$G$116+$Q$131+$Q$133)>=2.5,CEILING(($S$40-$G$116+$Q$131+$Q$133)-2.5,5),0))))))) ->  | G26: =IF($B$26="No Selection Made","",IF($C$5>=25,"",IF(TAMU!$D$3="","",IF(AND($H$2="",$H$3="",$H$4=""),"",IF($P$12="error","error",IF($S$41="",IF(SUM($T$41-$I$116)>=2.5,CEILING(($T$41-$I$116)-2.5,5),0),IF(SUM($S$41-$I$116)>=2.5,CEILING(($S$41-$I$116)-2.5,5),0))))))) ->  | M26: 2 | N26: =IF(OR($M$12="error",$M$12=0,$M$22=0),"",IF($M$18>0,VLOOKUP($M$18,veggies,2),IF($M$19>0,VLOOKUP($M$19,rowcropsandgrain,2),IF($M$20>0,VLOOKUP($M$20,turf,2),IF($M$21>0,VLOOKUP($M$21,fiber,2)))))) -> Corn 100 bu
E27: =IF(Specs!B4<>"","Manual over-ride used for year 1","") ->  | M27: 3 | N27: =IF(OR($N$12="error",$N$12=0,$N$13=0),"",IF($N$14>0,VLOOKUP($N$14,establish,2),IF($N$15>0,VLOOKUP($N$15,lawnandgarden,2),IF($N$16>0,VLOOKUP($N$16,forages,2),IF($N$17>0,VLOOKUP($N$17,oil,2)))))) -> Bermudagrass, Hyb, Hay 12000 lb | Q27: =IF($M$14>0,1,IF($M$15>0,2,IF($M$16>0,3,IF($M$17>0,4,IF($M$18>0,5,IF($M$19>0,6,IF($M$20>0,7,IF($M$21>0,8,"")))))))) -> 6 | R27: =IF($N$25<>"",$N$25,$N$26) -> Corn 100 bu | S27: =IF($Q$27=1,VLOOKUP($M$14,establish,5),IF($Q$27=2,VLOOKUP($M$15,lawnandgarden,5),IF($Q$27=3,VLOOKUP($M$16,forages,5),IF($Q$27=4,VLOOKUP($M$17,oil,5),"")))) ->  | T27: =IF($Q$27=5,VLOOKUP($M$18,veggies,5),IF($Q$27=6,VLOOKUP($M$19,rowcropsandgrain,5),IF($Q$27=7,VLOOKUP($M$20,turf,5),IF($Q$27=8,VLOOKUP($M$21,fiber,5),"")))) -> 120 | U27: N
M28: 3 | N28: =IF(OR($N$12="error",$N$12=0,$N$22=0),"",IF($N$18>0,VLOOKUP($N$18,veggies,2),IF($N$19>0,VLOOKUP($N$19,rowcropsandgrain,2),IF($N$20>0,VLOOKUP($N$20,turf,2),IF($N$21>0,VLOOKUP($N$21,fiber,2,0)))))) ->  | S28: =IF(AND(Entry!$S$5=1,Database!$C$336>='A&M'!L4),0,IF(Database!$C$336>='A&M'!L4,0,IF($Q$27=1,VLOOKUP($M$14,establish,7),IF($Q$27=2,VLOOKUP($M$15,lawnandgarden,7),IF($Q$27=3,VLOOKUP($M$16,forages,7),IF($Q$27=4,VLOOKUP($M$17,oil,7),"")))))) ->  | T28: =IF(AND(Entry!$S$5=1,Database!$C$336>='A&M'!L4),0,IF(Database!$C$336>='A&M'!L4,0,IF($Q$27=5,VLOOKUP($M$18,veggies,7),IF($Q$27=6,VLOOKUP($M$19,rowcropsandgrain,7),IF($Q$27=7,VLOOKUP($M$20,turf,7),IF($Q$27=8,VLOOKUP($M$21,fiber,7),"")))))) -> 80 | U28: P
M29: 4 | N29: =IF(OR($O$12="error",$O$12=0,$O$13=0),"",IF($O$14>0,VLOOKUP($O$14,establish,2),IF($O$15>0,VLOOKUP($O$15,lawnandgarden,2),IF($O$16>0,VLOOKUP($O$16,forages,2),IF($O$17>0,VLOOKUP($O$17,oil,2)))))) ->  | S29: =IF(Database!$C$337>='A&M'!L5,0,IF($Q$27=1,VLOOKUP($M$14,establish,10),IF($Q$27=2,VLOOKUP($M$15,lawnandgarden,10),IF($Q$27=3,VLOOKUP($M$16,forages,10),IF($Q$27=4,VLOOKUP($M$17,oil,10),""))))) ->  | T29: =IF(Database!$C$337>='A&M'!L5,0,IF($Q$27=5,VLOOKUP($M$18,veggies,10),IF($Q$27=6,VLOOKUP($M$19,rowcropsandgrain,10),IF($Q$27=7,VLOOKUP($M$20,turf,10),IF($Q$27=8,VLOOKUP($M$21,fiber,12),""))))) -> 110 | U29: K
M30: 4 | N30: =IF(OR($O$12="error",$O$12=0,$O$22=0),"",IF($O$18>0,VLOOKUP($O$18,veggies,2),IF($O$19>0,VLOOKUP($O$19,rowcropsandgrain,2),IF($O$20>0,VLOOKUP($O$20,turf,2),IF($O$21>0,VLOOKUP($O$21,fiber,2,0)))))) -> 
M31: 5 | N31: =IF(OR($P$12="error",$P$12=0,$P$13=0),"",IF($P$14>0,VLOOKUP($P$14,establish,2),IF($P$15>0,VLOOKUP($P$15,lawnandgarden,2),IF($P$16>0,VLOOKUP($P$16,forages,2),IF($P$17>0,VLOOKUP($P$17,oil,2)))))) ->  | Q31: =IF($N$14>0,1,IF($N$15>0,2,IF($N$16>0,3,IF($N$17>0,4,IF($N$18>0,5,IF($N$19>0,6,IF($N$20>0,7,IF($N$21>0,8,"")))))))) -> 3 | R31: =IF($N$27<>"",$N$27,$N$28) -> Bermudagrass, Hyb, Hay 12000 lb | S31: =IF($Q$31=1,VLOOKUP($N$14,establish,5),IF($Q$31=2,VLOOKUP($N$15,lawnandgarden,5),IF($Q$31=3,VLOOKUP($N$16,forages,5),IF($Q$31=4,VLOOKUP($N$17,oil,5),"")))) -> 300 | T31: =IF($Q$31=5,VLOOKUP($N$18,veggies,5),IF($Q$31=6,VLOOKUP($N$19,rowcropsandgrain,5),IF($Q$31=7,VLOOKUP($N$20,turf,5),IF($Q$31=8,VLOOKUP($N$21,fiber,5),"")))) ->  | U31: N
M32: 5 | N32: =IF(OR($P$12="error",$P$12=0,$P$22=0),"",IF($P$18>0,VLOOKUP($P$18,veggies,2),IF($P$19>0,VLOOKUP($P$19,rowcropsandgrain,2),IF($P$20>0,VLOOKUP($P$20,turf,2),IF($P$21>0,VLOOKUP($P$21,fiber,2,0)))))) ->  | S32: =IF(AND(Entry!$T$5=1,Database!$C$336>='A&M'!L4),0,IF(Database!$C$336>='A&M'!L4,0,IF($Q$31=1,VLOOKUP($N$14,establish,7),IF($Q$31=2,VLOOKUP($N$15,lawnandgarden,7),IF($Q$31=3,VLOOKUP($N$16,forages,7),IF($Q$31=4,VLOOKUP($N$17,oil,7),"")))))) -> 140 | T32: =IF(AND(Entry!$T$5=1,Database!$C$336>='A&M'!L4),0,IF(Database!$C$336>='A&M'!L4,0,IF($Q$31=5,VLOOKUP($N$18,veggies,7),IF($Q$31=6,VLOOKUP($N$19,rowcropsandgrain,7),IF($Q$31=7,VLOOKUP($N$20,turf,7),IF($Q$31=8,VLOOKUP($N$21,fiber,7),"")))))) ->  | U32: P
S33: =IF(Database!$C$337>='A&M'!L5,0,IF($Q$31=1,VLOOKUP($N$14,establish,10),IF($Q$31=2,VLOOKUP($N$15,lawnandgarden,10),IF($Q$31=3,VLOOKUP($N$16,forages,10),IF($Q$31=4,VLOOKUP($N$17,oil,10),""))))) -> 250 | T33: =IF(Database!$C$337>='A&M'!L5,0,IF($Q$31=5,VLOOKUP($N$18,veggies,10),IF($Q$31=6,VLOOKUP($N$19,rowcropsandgrain,10),IF($Q$31=7,VLOOKUP($N$20,turf,10),IF($Q$31=8,VLOOKUP($N$21,fiber,10),""))))) ->  | U33: K
A35: ="Year 1 - ( "&$C$4&" )" -> Year 1 - ( 2007 ) | Q35: =IF($O$14>0,1,IF($O$15>0,2,IF($O$16>0,3,IF($O$17>0,4,IF($O$18>0,5,IF($O$19>0,6,IF($O$20>0,7,IF($O$21>0,8,"")))))))) ->  | R35: =IF($N$29<>"",$N$29,$N$30) ->  | S35: =IF($Q$35=1,VLOOKUP($O$14,establish,5),IF($Q$35=2,VLOOKUP($O$15,lawnandgarden,5),IF($Q$35=3,VLOOKUP($O$16,forages,5),IF($Q$35=4,VLOOKUP($O$17,oil,5),"")))) ->  | T35: =IF($Q$35=5,VLOOKUP($O$18,veggies,5),IF($Q$35=6,VLOOKUP($O$19,rowcropsandgrain,5),IF($Q$35=7,VLOOKUP($O$20,turf,5),IF($Q$35=8,VLOOKUP($O$21,fiber,5),"")))) ->  | U35: N
A36: Credits | E36: N | G36: P2O5 | I36: K2O | S36: =IF(AND(Entry!$S$5=1,Database!$C$336>='A&M'!L4),0,IF(Database!$C$336>='A&M'!L4,0,IF($Q$35=1,VLOOKUP($O$14,establish,7),IF($Q$35=2,VLOOKUP($O$15,lawnandgarden,7),IF($Q$35=3,VLOOKUP($O$16,forages,7),IF($Q$35=4,VLOOKUP($O$17,oil,7),"")))))) ->  | T36: =IF(AND(Entry!$S$5=1,Database!$C$336>='A&M'!L4),0,IF(Database!$C$336>='A&M'!L4,0,IF($Q$35=5,VLOOKUP($O$18,veggies,7),IF($Q$35=6,VLOOKUP($O$19,rowcropsandgrain,7),IF($Q$35=7,VLOOKUP($O$20,turf,7),IF($Q$35=8,VLOOKUP($O$21,fiber,7),"")))))) ->  | U36: P
A37: 1. Nitrogen from previous legume crop | S37: =IF(Database!$C$337>='A&M'!L5,0,IF($Q$35=1,VLOOKUP($O$14,establish,10),IF($Q$35=2,VLOOKUP($O$15,lawnandgarden,10),IF($Q$35=3,VLOOKUP($O$16,forages,10),IF($Q$35=4,VLOOKUP($O$17,oil,10),""))))) ->  | T37: =IF(Database!$C$337>='A&M'!L5,0,IF($Q$35=5,VLOOKUP($O$18,veggies,10),IF($Q$35=6,VLOOKUP($O$19,rowcropsandgrain,10),IF($Q$35=7,VLOOKUP($O$20,turf,10),IF($Q$35=8,VLOOKUP($O$21,fiber,10),""))))) ->  | U37: K
A38: 2. Residual from long-term manure application
A39: 3. Irrigation water (Inches X ppm N in water X .226) | Q39: =IF($P$14>0,1,IF($P$15>0,2,IF($P$16>0,3,IF($P$17>0,4,IF($P$18>0,5,IF($P$19>0,6,IF($P$20>0,7,IF($P$21>0,8,"")))))))) ->  | R39: =IF($N$31<>"",$N$31,$N$32) ->  | S39: =IF($Q$39=1,VLOOKUP($P$14,establish,5),IF($Q$39=2,VLOOKUP($P$15,lawnandgarden,5),IF($Q$39=3,VLOOKUP($P$16,forages,5),IF($Q$39=4,VLOOKUP($P$17,oil,5),"")))) ->  | T39: =IF($Q$39=5,VLOOKUP($P$18,veggies,5),IF($Q$39=6,VLOOKUP($P$19,rowcropsandgrain,5),IF($Q$39=7,VLOOKUP($P$20,turf,5),IF($Q$39=8,VLOOKUP($P$21,fiber,5),"")))) ->  | U39: N
A40: 4. Other sources | S40: =IF(AND(Entry!$T$5=1,Database!$C$336>='A&M'!L4),0,IF(Database!$C$336>='A&M'!L4,0,IF($Q$39=1,VLOOKUP($P$14,establish,7),IF($Q$39=2,VLOOKUP($P$15,lawnandgarden,7),IF($Q$39=3,VLOOKUP($P$16,forages,7),IF($Q$39=4,VLOOKUP($P$17,oil,7),"")))))) ->  | T40: =IF(AND(Entry!$T$5=1,Database!$C$336>='A&M'!L4),0,IF(Database!$C$336>='A&M'!L4,0,IF($Q$39=5,VLOOKUP($P$18,veggies,7),IF($Q$39=6,VLOOKUP($P$19,rowcropsandgrain,7),IF($Q$39=7,VLOOKUP($P$20,turf,7),IF($Q$39=8,VLOOKUP($P$21,fiber,7),"")))))) ->  | U40: P
A41: Plant-Available Nutrients Applied to Field | E41: N | G41: P2O5 | I41: K2O | S41: =IF(Database!$C$337>='A&M'!L5,0,IF($Q$39=1,VLOOKUP($P$14,establish,10),IF($Q$39=2,VLOOKUP($P$15,lawnandgarden,10),IF($Q$39=3,VLOOKUP($P$16,forages,10),IF($Q$39=4,VLOOKUP($P$17,oil,10),""))))) ->  | T41: =IF(Database!$C$337>='A&M'!L5,0,IF($Q$39=5,VLOOKUP($P$18,veggies,10),IF($Q$39=6,VLOOKUP($P$19,rowcropsandgrain,10),IF($Q$39=7,VLOOKUP($P$20,turf,10),IF($Q$39=8,VLOOKUP($P$21,fiber,10),""))))) ->  | U41: K
A42: 5. Starter Fertilizern (if any)
A43: 6. Other
A44: 7. Subtotal (sum of lines 1 - 6) | E44: =SUM(E37:E43) -> 0 | G44: =SUM(G39:G43) -> 0 | I44: =SUM(I39:I43) -> 0 | Q44: establish
Q45: lawnandgarden
Q46: forages
Q47: oil
Q48: veggies
Q49: rowcropsandgrain
Q50: turf
Q51: fiber
A53: ="Year 2 - ( "&$C$4+1&" )" -> Year 2 - ( 2008 )
A54: Credits | E54: N | G54: P2O5 | I54: K2O
A55: 1. Nitrogen from previous legume crop
A56: 2. Residual from long-term manure application
A57: 3. Irrigation water (Inches X ppm N in water X .226)
A58: 4. Other sources
A59: Plant-Available Nutrients Applied to Field | E59: N | G59: P2O5 | I59: K2O
A60: 5. Starter Fertilizern (if any)
A61: 6. Other
A62: 7. Subtotal (sum of lines 1 - 6) | E62: =SUM(E55:E61) -> 0 | G62: =SUM(G57:G61) -> 0 | I62: =SUM(I57:I61) -> 0
A71: ="Year 3 - ( "&$C$4+2&" )" -> Year 3 - ( 2009 )
A72: Credits | E72: N | G72: P2O5 | I72: K2O
A73: 1. Nitrogen from previous legume crop
A74: 2. Residual from long-term manure application
A75: 3. Irrigation water (Inches X ppm N in water X .226)
A76: 4. Other sources
A77: Plant-Available Nutrients Applied to Field | E77: N | G77: P2O5 | I77: K2O
A78: 5. Starter Fertilizern (if any)
A79: 6. Other
A80: 7. Subtotal (sum of lines 1 - 6) | E80: =SUM(E73:E79) -> 0 | G80: =SUM(G75:G79) -> 0 | I80: =SUM(I75:I79) -> 0
A89: ="Year 4 - ( "&$C$4+3&" )" -> Year 4 - ( 2010 )
A90: Credits | E90: N | G90: P2O5 | I90: K2O
A91: 1. Nitrogen from previous legume crop
A92: 2. Residual from long-term manure application
A93: 3. Irrigation water (Inches X ppm N in water X .226)
A94: 4. Other sources
A95: Plant-Available Nutrients Applied to Field | E95: N | G95: P2O5 | I95: K2O
A96: 5. Starter Fertilizern (if any)
A97: 6. Other
A98: 7. Subtotal (sum of lines 1 - 6) | E98: =SUM(E91:E97) -> 0 | G98: =SUM(G93:G97) -> 0 | I98: =SUM(I93:I97) -> 0
A107: ="Year 5 - ( "&$C$4+4&" )" -> Year 5 - ( 2011 )
A108: Credits | E108: N | G108: P2O5 | I108: K2O
A109: 1. Nitrogen from previous legume crop
A110: 2. Residual from long-term manure application
A111: 3. Irrigation water (Inches X ppm N in water X .226)
A112: 4. Other sources
A113: Plant-Available Nutrients Applied to Field | E113: N | G113: P2O5 | I113: K2O
A114: 5. Starter Fertilizern (if any)
A115: 6. Other
A116: 7. Subtotal (sum of lines 1 - 6) | E116: =SUM(E109:E115) -> 0 | G116: =SUM(G111:G115) -> 0 | I116: =SUM(I111:I115) -> 0
C129: Residue Type | E129: Amount
A131: Year 1 | C131: Crop Residue | E131: =IF($O$131="","",$O$131) ->  | F131: =IF(OR($E$131="",$P$131=""),"",VLOOKUP($P$131,$M$131:$N$142,2)) ->  | M131: 1 | N131: 1000 | Q131: =IF($F$131="",0,($F$131/2000*10)) -> 0
C132: or | M132: 2 | N132: 2000
C133: Cover Crop / Green Manure | E133: =IF($O$133="","",$O$133) ->  | F133: =IF(OR($E$133="",$P$133=""),"",VLOOKUP($P$133,$M$131:$N$142,2)) ->  | M133: 3 | N133: 3000 | Q133: =IF($F$133="",0,($F$133/2000*5)) -> 0
M134: 4 | N134: 4000
A135: Year 2 | C135: Crop Residue | E135: =IF($O$135="","",$O$135) ->  | F135: =IF(OR($E$135="",$P$135=""),"",VLOOKUP($P$135,$M$131:$N$142,2)) ->  | M135: 5 | N135: 5000 | Q135: =IF($F$135="",0,($F$135/2000*10)) -> 0
C136: or | M136: 6 | N136: 6000
C137: Cover Crop / Green Manure | E137: =IF($O$137="","",$O$137) ->  | F137: =IF(OR($E$137="",$P$137=""),"",VLOOKUP($P$137,$M$131:$N$142,2)) ->  | M137: 7 | N137: 7000 | Q137: =IF($F$137="",0,($F$137/2000*5)) -> 0
M138: 8 | N138: 8000
A139: Year 3 | C139: Crop Residue | E139: =IF($O$139="","",$O$139) ->  | F139: =IF(OR($E$139="",$P$139=""),"",VLOOKUP($P$139,$M$131:$N$142,2)) ->  | M139: 9 | N139: 9000 | Q139: =IF($F$139="",0,($F$139/2000*10)) -> 0
C140: or | M140: 10 | N140: 10000
C141: Cover Crop / Green Manure | E141: =IF($O$141="","",$O$141) ->  | F141: =IF(OR($E$141="",$P$141=""),"",VLOOKUP($P$141,$M$131:$N$142,2)) ->  | M141: 11 | N141: 11000 | Q141: =IF($F$141="",0,($F$141/2000*5)) -> 0
M142: 12 | N142: 12000
A143: Year 4 | C143: Crop Residue | E143: =IF($O$143="","",$O$143) ->  | F143: =IF(OR($E$143="",$P$143=""),"",VLOOKUP($P$143,$M$131:$N$142,2)) ->  | Q143: =IF($F$143="",0,($F$143/2000*10)) -> 0
C144: or
C145: Cover Crop / Green Manure | E145: =IF($O$145="","",$O$145) ->  | F145: =IF(OR($E$145="",$P$145=""),"",VLOOKUP($P$145,$M$131:$N$142,2)) ->  | Q145: =IF($F$145="",0,($F$145/2000*5)) -> 0
A147: Year 5 | C147: Crop Residue | E147: =IF($O$147="","",$O$147) ->  | F147: =IF(OR($E$147="",$P$147=""),"",VLOOKUP($P$147,$M$131:$N$142,2)) ->  | Q147: =IF($F$147="",0,($F$147/2000*10)) -> 0
C148: or
C149: Cover Crop / Green Manure | E149: =IF($O$149="","",$O$149) ->  | F149: =IF(OR($E$149="",$P$149=""),"",VLOOKUP($P$149,$M$131:$N$142,2)) ->  | Q149: =IF($F$149="",0,($F$149/2000*5)) -> 0
P151: =SUM(P131:P149) -> 0

Sheet Specs
A2: =+"YEAR 1 ( "&Entry!$C$4&" )" -> YEAR 1 ( 2007 ) | D2: =IF(A6="auto recommendation used","","Over-ride Values") -> 
A3: =+"Crop / Grass Species and Yield: "&IF(Entry!$B$22="","None Selected",Entry!$B$22) -> Crop / Grass Species and Yield: Corn 200 bu | B3: =IF(A6="auto recommendation used","","N") ->  | C3: =IF(A6="auto recommendation used","","P2O5") ->  | D3: =IF(A6="auto recommendation used","","K2O") -> 
F4: Over-ride auto recommendation. Enter adjusted recommendation to the right; explain in specifications.
A5: =+"pH level as identified by soil test: "&IF(AND(Entry!$H$2="",Entry!$H$3="",Entry!$H$4=""),"",IF(TAMU!$A$3<>"",TAMU!$A$3,IF(#REF!<>"",#REF!,IF(#REF!<>"",#REF!,IF(#REF!<>"",#REF!,IF(#REF!<>"",#REF!,"error"))))))&" Lime: "&IF(Entry!$H$22="","",Entry!$H$22)&" "&IF(Entry!$H$22="","",IF(Entry!$H$22>1,"Tons","Ton")) -> pH level as identified by soil test: 5.6 Lime: 1 Ton
A6: =IF(A4="","Auto Recommendation Used","Manual Over-ride Used for Year 1") -> Auto Recommendation Used | F6: =Entry!$H$3 -> 
A7: =+"Recommended nutrient application to meet yield goal: "&IF(OR(Entry!$B$22="",A4="Over-ride auto recommendation. Enter adjusted recommendation to the right; explain in specifications."),(B4&" - "&C4&" - "&D4)&" = "&IF(Entry!$H$3="x","( Establishment Rate )",IF(Entry!$H$2="x","( Soil Test Rate )",IF(Entry!$H$4="x","( Grass Production Rate )",""))),(Entry!E22&" - "&Entry!F22&" - "&Entry!G22)&" = "&IF(Entry!$H$3="x","( Establishment Rate )",IF(Entry!$H$2="x","( Soil Test Rate )",IF(Entry!$H$4="x","( Grass Production Rate )")))) -> Recommended nutrient application to meet yield goal: 245 - 115 - 120 = ( Soil Test Rate ) | F7: =Entry!I22 -> 
A8: =IF(Entry!$H$3="","",+"After emergence/rooting, topdress with extra NITROGEN: "&IF(Entry!$L$14>0,VLOOKUP(Entry!$L$14,establish,16)&" "&"Units of Actual N")) -> 
A9: =+"Defined purpose"&IF(COUNTA(Entry!$P$2:$P$5)>1,"s : "," : ")&IF(Entry!$F$2="x","Optimum Yield","")&IF(Entry!$F$3="x",IF(Entry!$F$2="x",", Quick Cover"," Quick Cover"),"")&IF(Entry!$F$4="x",IF(OR(Entry!$F$2="x",Entry!$F$3="x"),", Water Quality"," Water Quality"),"")&IF(Entry!$F$5="x",IF(OR(Entry!$F$2="x",Entry!$F$3="x",Entry!$F$4="x"),", Soil Condition"," Soil Condition"),"") -> Defined purpose : Optimum Yield
A10: Specifications (including sensitive areas)
A11: Method, Form, Timing of Application and other notes:
B12: See below for example narratives
A24: ="YEAR 2 ( "&Entry!$C$4+1&" )" -> YEAR 2 ( 2008 )
A25: =+"Crop / Grass Species and Yield: "&IF(Entry!$B$23="","None Selected",Entry!$B$23) -> Crop / Grass Species and Yield: Corn 100 bu
A27: =+"pH level as identified by soil test: "&IF(AND(Entry!$H$2="",Entry!$H$3="",Entry!$H$4=""),"",IF(TAMU!$A$3<>"",TAMU!$A$3,IF(#REF!<>"",#REF!,IF(#REF!<>"",#REF!,IF(#REF!<>"",#REF!,IF(#REF!<>"",#REF!,"error"))))))&" Lime: "&IF(Entry!$H$23="","",Entry!$H$23)&" "&IF(Entry!$H$23="","",IF(Entry!$H$23>1,"Tons","Ton")) -> pH level as identified by soil test: 5.6 Lime:
A29: =+"Annual Crop Requirement not to Exceed: "&IF(Entry!$B$23="","",Entry!$E$23&" - "&Entry!$F$23&" - "&Entry!$G$23)&" = "&IF(Entry!$H$3="x","( Grass Production Rate )",IF(Entry!$H$2="x","( Crop Rate )",IF(Entry!$H$4="x","( Grass Production Rate )",""))) -> Annual Crop Requirement not to Exceed: 120 - 80 - 110 = ( Crop Rate )
A31: =+"Defined purpose"&IF(COUNTA(Entry!$P$2:$P$5)>1,"s : "," : ")&IF(Entry!$F$2="x","Optimum Yield","")&IF(Entry!$F$3="x",IF(Entry!$F$2="x",", Quick Cover"," Quick Cover"),"")&IF(Entry!$F$4="x",IF(OR(Entry!$F$2="x",Entry!$F$3="x"),", Water Quality"," Water Quality"),"")&IF(Entry!$F$5="x",IF(OR(Entry!$F$2="x",Entry!$F$3="x",Entry!$F$4="x"),", Soil Condition"," Soil Condition"),"") -> Defined purpose : Optimum Yield
A32: Specifications (including sensitive areas)
A33: Method, Form, Timing of Application and other notes:
A46: ="YEAR 3 ( "&Entry!$C$4+2&" )" -> YEAR 3 ( 2009 )
A47: =+"Crop / Grass Species and Yield: "&IF(Entry!$B$24="","None Selected",Entry!$B$24) -> Crop / Grass Species and Yield: Bermudagrass, Hyb, Hay 12000 lb
A49: =+"pH level as identified by soil test: "&IF(AND(Entry!$H$2="",Entry!$H$3="",Entry!$H$4=""),"",IF(TAMU!$A$3<>"",TAMU!$A$3,IF(#REF!<>"",#REF!,IF(#REF!<>"",#REF!,IF(#REF!<>"",#REF!,IF(#REF!<>"",#REF!,"error"))))))&" Lime: "&IF(Entry!$H$24="","",Entry!$H$24)&" "&IF(Entry!$H$24="","",IF(Entry!$H$24>1,"Tons","Ton")) -> pH level as identified by soil test: 5.6 Lime:
A51: =+"Annual Crop Requirement not to Exceed: "&IF(Entry!$B$24="","",Entry!$E$24&" - "&Entry!$F$24&" - "&Entry!$G$24)&" = "&IF(Entry!$H$3="x","( Grass Production Rate )",IF(Entry!$H$2="x","( Crop Rate )",IF(Entry!$H$4="x","( Grass Production Rate )",""))) -> Annual Crop Requirement not to Exceed: 300 - 140 - 250 = ( Crop Rate )
A53: =+"Defined purpose"&IF(COUNTA(Entry!$P$2:$P$5)>1,"s : "," : ")&IF(Entry!$F$2="x","Optimum Yield","")&IF(Entry!$F$3="x",IF(Entry!$F$2="x",", Quick Cover"," Quick Cover"),"")&IF(Entry!$F$4="x",IF(OR(Entry!$F$2="x",Entry!$F$3="x"),", Water Quality"," Water Quality"),"")&IF(Entry!$F$5="x",IF(OR(Entry!$F$2="x",Entry!$F$3="x",Entry!$F$4="x"),", Soil Condition"," Soil Condition"),"") -> Defined purpose : Optimum Yield
A54: Specifications (including sensitive areas)
A55: Method, Form, Timing of Application and other notes:
A68: ="YEAR 4 ( "&Entry!$C$4+3&" )" -> YEAR 4 ( 2010 )
A69: =+"Crop / Grass Species and Yield: "&IF(Entry!$B$25="","None Selected",Entry!$B$25) -> Crop / Grass Species and Yield: Do Not Select Crop
A71: =+"pH level as identified by soil test: "&IF(AND(Entry!$H$2="",Entry!$H$3="",Entry!$H$4=""),"",IF(TAMU!$A$3<>"",TAMU!$A$3,IF(#REF!<>"",#REF!,IF(#REF!<>"",#REF!,IF(#REF!<>"",#REF!,IF(#REF!<>"",#REF!,"error"))))))&" Lime: "&IF(Entry!$H$25="","",Entry!$H$25)&" "&IF(Entry!$H$25="","",IF(Entry!$H$25>1,"Tons","Ton")) -> pH level as identified by soil test: 5.6 Lime:
A73: =+"Recommended nutrient application to meet yield goal: "&IF(Entry!$B$25="","",Entry!$E$25&" - "&Entry!$F$25&" - "&Entry!$G$25)&" = "&IF(Entry!$H$3="x","( Grass Production Rate )",IF(Entry!$H$2="x","( Crop Rate )",IF(Entry!$H$4="x","( Grass Production Rate )",""))) -> Recommended nutrient application to meet yield goal: - - = ( Crop Rate )
A75: =+"Defined purpose"&IF(COUNTA(Entry!$P$2:$P$5)>1,"s : "," : ")&IF(Entry!$F$2="x","Optimum Yield","")&IF(Entry!$F$3="x",IF(Entry!$F$2="x",", Quick Cover"," Quick Cover"),"")&IF(Entry!$F$4="x",IF(OR(Entry!$F$2="x",Entry!$F$3="x"),", Water Quality"," Water Quality"),"")&IF(Entry!$F$5="x",IF(OR(Entry!$F$2="x",Entry!$F$3="x",Entry!$F$4="x"),", Soil Condition"," Soil Condition"),"") -> Defined purpose : Optimum Yield
A76: Specifications (including sensitive areas)
A77: Method, Form, Timing of Application and other notes:
A90: ="YEAR 5 ( "&Entry!$C$4+4&" )" -> YEAR 5 ( 2011 )
A91: =+"Crop / Grass Species and Yield: "&IF(Entry!$B$26="","None Selected",Entry!$B$26) -> Crop / Grass Species and Yield: Do Not Select Crop
A93: =+"pH level as identified by soil test: "&IF(AND(Entry!$H$2="",Entry!$H$3="",Entry!$H$4=""),"",IF(TAMU!$A$3<>"",TAMU!$A$3,IF(#REF!<>"",#REF!,IF(#REF!<>"",#REF!,IF(#REF!<>"",#REF!,IF(#REF!<>"",#REF!,"error"))))))&" Lime: "&IF(Entry!$H$26="","",Entry!$H$26)&" "&IF(Entry!$H$26="","",IF(Entry!$H$26>1,"Tons","Ton")) -> pH level as identified by soil test: 5.6 Lime:
A95: =+"Recommended nutrient application to meet yield goal: "&IF(Entry!$B$26="","",Entry!$E$26&" - "&Entry!$F$26&" - "&Entry!$G$26)&" = "&IF(Entry!$H$3="x","( Grass Production Rate )",IF(Entry!$H$2="x","( Crop Rate )",IF(Entry!$H$4="x","( Grass Production Rate )",""))) -> Recommended nutrient application to meet yield goal: - - = ( Crop Rate )
A97: =+"Defined purpose"&IF(COUNTA(Entry!$P$2:$P$5)>1,"s : "," : ")&IF(Entry!$F$2="x","Optimum Yield","")&IF(Entry!$F$3="x",IF(Entry!$F$2="x",", Quick Cover"," Quick Cover"),"")&IF(Entry!$F$4="x",IF(OR(Entry!$F$2="x",Entry!$F$3="x"),", Water Quality"," Water Quality"),"")&IF(Entry!$F$5="x",IF(OR(Entry!$F$2="x",Entry!$F$3="x",Entry!$F$4="x"),", Soil Condition"," Soil Condition"),"") -> Defined purpose : Optimum Yield
A98: Specifications (including sensitive areas)
A99: Method, Form, Timing of Application and other notes:
A112: SPLIT APPLICATION RECOMMENDATIONS
A113: NITROGEN TIMING - When the production target is higher than
A114: than the minimum amount, the total amount of nitrogen has
A115: already been adjusted on the following crops to reflect the higher
A116: production. The following is the normal A&M recommendation for
A117: split-application of the nitrogen.
A119: Species Apply units of N
A120: Bahiagrass after each grazing period 40
A121: Bahiagrass, hay, after each cutting 70
A122: Bermudagrass, Common, after each grazing period 40
A123: Bermudagrass, Common, hay, after each cutting 70
A124: Bermudagrass, Improved, after each grazing period 60
A125: Bermudagrass, Improved, Hay after each cutting 100
A126: Bluestems, Introduced, after each grazing period 40
A127: Buffelgrass after each cutting 70
A128: Indiangrass after each grazing period 30
A129: Kleingrass after each grazing period 30
A130: Lovegrass after each grazing period 40
A131: Switchgrass after each grazing period 30
A133: POTASSIUM TIMING - Any time more than 150 # of K20 is to be applied, it should be split-applied.
A134: Grass Establishment - Commercial Fertilizer: Broadcast all recommended nutrients before planting, if weed competition is expected to be high, apply recommended nitrogen (N) after germination or green up of desired species. If soil test P & K levels are V. Low to Moderate the P and K applied should be incorporated as part of final seedbed preparation. Recommended lime should be applied at least 6 months before planting. Do not exceed annual soil test recommended or crop requirement of N or P by more than 10%. Additional ( lb/ac) Nitrogen for establishment will be applied after desired species has attained 75% cover of the planted area. Additional N and potassium for production should be applied in split applications according to number of planned grazing or haying periods, and shall be applied as close to beginning of new growth as feasible (green up in spring or after each grazing or haying). Total establishment year N application for production will not exceed the year 2 crop N requirement.
A135: Annual Legume Establishment-1 - Commercial Fertilizer: Broadcast. Recommended lime should be applied at least 6 months before planting. Do not exceed annual soil test recommended or crop requirement of P by more than 10%. No nitrogen (N) will be applied in the cool season unless blended fertilizer is not available (see note in Fertilizer Rates section). Phosphorus will be applied before planting or green up in the fall. Potassium should be applied in split applications according to how may grazing periods are planned, and shall be applied as close to the beginning of new growth as feasible (Prior to Greenup in the fall and after each grazing). If the legume seeding or re-seeding is successful, N application for the base grass should be reduced by 60 to 80 lbs/ac each following year.
A136: Annual Legume Establishment-2 - Commercial Fertilizer: Broadcast. Recommended lime should be applied at least 6 months before planting. WHEN CUSTOM BLENDED FERTILIZER without NITROGEN is not available. THE AVAILABLE PRE-BLEND WITH THE LOWEST AMOUNT NITROGEN WILL BE USED, Do not exceed annual crop requirement for Phosphorus by more than 10% and: If the P and/or K levels are V. LOW or LOW, the pre-blend containing nitrogen and P and/or K for legume establishment should be applied with the last fertilization of the base grass if over seeded, or at least 2 weeks prior to seedbed preparation if planted on a prepared seedbed. If the P and/or K levels are MODERATE or HIGHER; the pre-blend containing nitrogen and P and/or K for legume establishment should be applied sometime after the legume has germinated and before it makes its peak growth in the spring. If the legume seeding or re-seeding is successful, N application for the base grass should be reduced by 60 to 80 lbs/ac each following year.
A137: Grass Maintenance and Production - Commercial Fertilizer: Broadcast. Do not exceed annual soil test recommended or crop requirement of N or P by more than 10%. All recommended phosphorus should be applied at green up. Nitrogen and potassium should be applied in split applications according to number of planned grazing or haying periods, and shall be applied as close to initiation of new growth as feasible (green up in spring or after each grazing or haying). If a legume seeding or re-seeding is successful, N application for the base grass should be reduced by 60 to 80 lbs/ac each following year.
A138: Other cropland examples.
A139: Cotton Production <1 bale: Commercial fertilizer: broadcast and/or incorporate all of annual N and all P2O5 and K2O at planting or slightly before planting.Do not exceed annual soil test recommended or crop requirement of N or P by more than 10%.
A140: Cotton production >1 bale: Commercial fertilizer, broadcast and/or incorporate about 20% of the recommended nitrogen and all P2O5 and K2O at planting. Sidedress about 40% of the recommended nitrogen after squaring begins if cotton is pale green in color. If not delay sidedress until first bloom. Monitor nitrates with petiole leaf test, or visual observation beginning one week before bloom. Sidedress with remaining N if petiole test indicates need, or visual observation (pale green) suggests need for additional N. Final N application should be adjusted based on weather conditions and/or availability of irrigation water to insure the yield goal can be meet or exceeded. Do not exceed annual soil test recommended or crop requirement of N or P by more than 10%.
A141: Corn Production <110 bu: Commercial fertilizer: broadcast and/or incorporate annual N, P2O5, and K2O at or slightly before planting.Do not exceed annual soil test recommended or crop requirement of N or P by more than 10%.
A142: Corn Production >110 bu: Commercial fertilizer: broadcast and/or incorporate about 60 - 70% of annual nitrogen and all P2O5 and K2O at or slightly before planting. Sidedress remaining N when corn is 10 - 12 inches high (20 - 30 days after emergence).Do not exceed annual soil test or crop requirement of N or P by more than 10%.
A143: Corn or Sorghum Silage: Commercial fertilizer, broadcast and/or incorporate about 50% nitrogen and all P2O5, and K2O at or slightly before planting. Broadcast remaining N prior to initiation of the 5th leaf. Do not exceed annual soil test recommended or crop requirement of N or P by more than 10%.
A144: Hay Grazer, Forage Sorg, etc. 1 cutting or light grazing: Commercial fertilizer, broadcast and/or incorporate all annual nitrogen, P2O5, and K2O at or slightly before planting.Do not exceed annual soil test recommended or crop requirement of N or P by more than 10%.
A145: Hay Grazer, Forage Sorg, etc. 2 cutting or heavy grazing: Commercial fertilizer, broadcast and/or incorporate about 60% of annual nitrogen, and all P2O5, and K2O at or slightly before planting. Apply remaining about 40% N after first cutting or grazing period.Do not exceed annual soil test recommended or crop requirement of N or P by more than 10%.
A146: Hay Grazer, Forage Sorg, etc. 3 cutting or moderate grazing: Commercial fertilizer, broadcast and/or incorporate about 45% of annual nitrogen, and all P2O5, and K2O at or slightly before planting. Apply about 30% of annual N after first cutting or grazing period, and remaining N after second cutting. Do not exceed annual soil test recommended or crop requirement of N or P by more than 10%.
A147: Rice (single crop), apply all P & K and about 90 - 120 lb/ac N before flood. Apply about 60 lb/ac N between boot and 5% heading to reduce lodging increase main crop yield and milling. Do not exceed annual soil test recommended or crop requirement of N or P by more than 10%.
A148: Rice plus ratoon, apply all P & K and about 90 - 120 lb/ac N before flood. Apply about 60 lb/ac N between boot and 5% heading to reduce lodging increase main crop yield and milling plus improve ratoon yields. Split ratoon crop N application if dry period between main & ratoon crop will be 10 - 25 days, otherwise apply all ratoon crop N at before ratoon flood. Do not exceed annual soil test recommended or crop requirement of N or P by more than 10%.
A149: Rice Fallow land: no fertilizer unless production is needed for grazing. Do not exceed annual soil test recommended or crop requirement of N or P by more than 10%. | B149: If fallow is grazed select native grazing from
A150: Small Grain Grazing All yield levels: Commercial fertilizer, broadcast and/or incorporate 30 to 40% of annual nitrogen and all P2O5, and K2O at or slightly before planting. Broadcast about 30% of annual nitrogen in late fall and remaining annual nitrogen in late winter, if needed. Do not exceed annual soil test recommended or crop requirement of N or P by more than 10%. | B150: forage category for the crop and grass Maint. From specs.
A151: Soybean: Commercial fertilizer, band, broadcast and/or incorporate all P2O5, and K2O at or slightly before planting. Do not exceed annual soil test recommended or crop requirement of N or P by more than 10%.
A152: Wheat Grain Plus Grazing: Commercial fertilizer, broadcast and/or incorporate about 30 - 40%nitrogen and all P2O5, and K2O at or slightly before planting. Broadcast about 30% of annual nitrogen in late fall, if additional grazing is needed, and broadcast the remaining N after cattle removal, and prior to jointing to produce grain crop. Do not exceed annual soil test recommended or crop requirement of N or P by more than 10%.
A153: Wheat Grain Only <60 bu: Commercial fertilizer, broadcast and/or incorporate All annual nitrogen, P2O5, and K2O at or slightly before planting. Do not exceed annual soil test recommended or crop requirement of N or P by more than 10%.
A154: Wheat Grain Only >60 bu: Commercial fertilizer, broadcast and/or incorporate about 50 - 60% of annual nitrogen and all P2O5, and K2O at or slightly before planting. Broadcast the remaining lb/ac nitrogen prior to jointing. Do not exceed annual soil test recommended or crop requirement of N or P by more than 10%.

Sheet Database
B1: A & M Web Page Data 1/ | C1: Units | D1: NO3-N ppm | E1: Max N lbs | F1: Recom lbs / unit | G1: P rate | H1: P Factor | I1: Recom lbs / unit | J1: K rate | K1: K Factor | L1: Recom lbs / unit | N1: 23 | O1: 24 | P1: 25
C2: A = Ac | N2: 2nd Application of N
C3: S = SF | M3: nutrient | N3: Constant | O3: Adjust. | P3: Calculated
A4: 1 | B4: AFRICAN MILLET | C4: A | D4: 30 | E4: 60 | G4: 55 | H4: 1.1 | J4: 40 | K4: 0.32
A5: =A4+1 -> 2 | B5: ALFALFA (NON-IRRIGATED) 4 Ton | C5: A | D5: 10 | E5: 20 | G5: 80 | H5: 1.333 | J5: 120 | K5: 0.96 | Z5: E
A6: =A5+1 -> 3 | B6: ALFALFA (IRRIGATED) 6 TON | C6: A | D6: 10 | E6: 20 | G6: 130 | H6: 2.167 | J6: 160 | K6: 1.28
A7: 4 | B7: ALFALFA (IRRIGATED) 8-12 TON | C7: A | D7: 10 | E7: 20 | G7: 180 | H7: 3 | J7: 200 | K7: 1.6
A8: 5 | B8: Aloe Vera | C8: A | D8: 25 | E8: 50 | G8: 3 | H8: 0.06 | J8: 40 | K8: 0.32
A9: 6 | B9: Apples | C9: AS | D9: 20 | E9: 1 | G9: 38 | H9: 0.75 | J9: 150 | K9: 0.95
A10: 7 | B10: Athletic Fields - Low, Moderate or High Maintenance | C10: A | D10: 30 | E10: 60 | G10: 38 | H10: 0.75 | J10: 150 | K10: 0.95
A11: 8 | B11: Azaleas and Camelias | C11: AS | D11: 30 | E11: 1.4 | G11: 3 | H11: 0.06 | J11: 0 | K11: 0
A12: 9 | B12: Bahiagrass Grazing 1AU/1.5ac | C12: A | D12: 110 | E12: 240 | G12: 65 | H12: 1.3 | J12: 120 | K12: 0.96 | M12: N
A13: 10 | B13: Bahiagrass Grazing 1AU/2ac | C13: A | D13: 80 | E13: 160 | G13: 40 | H13: 0.8 | J13: 120 | K13: 0.96 | M13: N
A14: 11 | B14: Bahiagrass Grazing 1AU/3ac | C14: A | D14: 75 | E14: 150 | G14: 40 | H14: 0.8 | J14: 100 | K14: 0.8 | M14: ALL | Z14: E
A15: 12 | B15: Bahiagrass Grazing 1AU/4ac | C15: A | D15: 70 | E15: 140 | G15: 40 | H15: 0.8 | J15: 100 | K15: 0.8 | M15: ALL | Z15: E
A16: 13 | B16: Bahiagrass Grazing 1AU/5ac | C16: A | D16: 50 | E16: 100 | G16: 30 | H16: 0.6 | J16: 100 | K16: 0.8 | M16: ALL | Z16: E
A17: 14 | B17: Bahiagrass Grazing 1AU/6 + ac | C17: A | D17: 30 | E17: 60 | G17: 30 | H17: 0.6 | J17: 80 | K17: 0.64 | M17: ALL | Z17: E
A18: 15 | B18: Bahiagrass Hay (1 cutting + grazing) | C18: A | D18: 65 | E18: 130 | G18: 65 | H18: 1.3 | J18: 120 | K18: 0.96
A19: 16 | B19: Bahiagrass Hay 6000 lb | C19: A | D19: 70 | E19: 140 | G19: 40 | H19: 0.8 | J19: 90 | K19: 0.72 | M19: ALL | Z19: E
A20: 17 | B20: Bahiagrass Hay 8000 lb | C20: A | D20: 105 | E20: 210 | G20: 80 | H20: 1.6 | J20: 180 | K20: 1.44 | M20: N
A21: 18 | B21: Bahiagrass Hay 10000 lb | C21: A | D21: 210 | E21: 420 | G21: 110 | H21: 2.2 | J21: 250 | K21: 1.667 | M21: N
A22: 19 | B22: Barley 30 - 40 bu | C22: A | D22: 25 | E22: 50 | G22: 55 | H22: 1.1 | J22: 40 | K22: 0.32
A23: 20 | B23: Barley 70 - 90 bu | C23: A | D23: 50 | E23: 100 | G23: 80 | H23: 1.6 | J23: 90 | K23: 0.71
A24: 21 | B24: Barley 70 - 90 bu + Light grazing | C24: A | D24: 50 | E24: 100 | G24: 80 | H24: 1.6 | J24: 90 | K24: 0.72
A25: 22 | B25: Barley heavy grazing | C25: A | D25: 80 | E25: 160 | G25: 105 | H25: 2.1 | J25: 120 | K25: 0.96
A26: 23 | B26: Barley heavy grazing, sandy soils | C26: A | D26: 110 | E26: 220 | G26: 105 | H26: 2.1 | J26: 120 | K26: 0.96
A27: 24 | B27: Beans, Green | C27: A | D27: 25 | E27: 50 | G27: 106 | H27: 2.13 | J27: 120 | K27: 0.95
A28: 25 | B28: Beans, Lima | C28: A | D28: 25 | E28: 50 | G28: 106 | H28: 2.13 | J28: 120 | K28: 0.95
A29: 26 | B29: Beans, Pinto | C29: A | D29: 25 | E29: 50 | G29: 106 | H29: 2.13 | J29: 120 | K29: 0.95
A30: 27 | B30: Beets | C30: A | D30: 35 | E30: 70 | G30: 106 | H30: 2.13 | J30: 90 | K30: 0.71
A31: 28 | B31: Bermudagrass, Common, Grazing 1 AU/1.5 ac | C31: A | D31: 120 | E31: 240 | G31: 65 | H31: 1.3 | J31: 80 | K31: 0.64
A32: 29 | B32: Bermudagrass, Common, Grazing 1 AU/2 ac | C32: A | D32: 90 | E32: 180 | G32: 40 | H32: 0.8 | J32: 50 | K32: 0.333 | M32: N
A33: 30 | B33: Bermudagrass, Common, Grazing 1AU/3 ac | C33: A | D33: 90 | E33: 180 | G33: 40 | H33: 0.8 | J33: 50 | K33: 0.333 | M33: N | Z33: E
A34: 31 | B34: Bermudagrass, Common, Grazing 1AU/4ac | C34: A | D34: 80 | E34: 160 | G34: 40 | H34: 0.8 | J34: 50 | K34: 0.333 | M34: ALL | Z34: E
A35: 32 | B35: Bermudagrass, Common, Grazing 1AU/5ac | C35: A | D35: 70 | E35: 140 | G35: 30 | H35: 0.6 | J35: 50 | K35: 0.333 | M35: ALL | Z35: E
A36: 33 | B36: Bermudagrass, Common, Grazing 1AU/6ac | C36: A | D36: 50 | E36: 100 | G36: 30 | H36: 0.6 | J36: 50 | K36: 0.333 | M36: ALL | Z36: E
A37: 34 | B37: Bermudagrass, Common, Grazing 1AU/9+ac | C37: A | D37: 40 | E37: 60 | G37: 30 | H37: 0.6 | J37: 50 | K37: 0.333 | M37: ALL | Z37: E
A38: 35 | B38: Bermudagrass, Common, Hay (1 cut + grazing) | C38: A | D38: 65 | E38: 130 | G38: 65 | H38: 1.3 | J38: 90 | K38: 0.72 | M38: N
A39: 36 | B39: Bermudagrass, Common, Hay 5000 lb | C39: A | D39: 70 | E39: 140 | G39: 40 | H39: 0.8 | J39: 100 | K39: 0.8 | M39: N | Z39: E
A40: 37 | B40: Bermudagrass, Common, Hay 6000 lb | C40: A | D40: 105 | E40: 210 | G40: 65 | H40: 1.3 | J40: 170 | K40: 1.067 | M40: N | Z40: E
A41: 38 | B41: Bermudagrass, Common, Hay 8000 lb | C41: A | D41: 140 | E41: 280 | G41: 80 | H41: 1.6 | J41: 240 | K41: 1.067 | M41: N
A42: 39 | B42: Bermudagrass, Common, Hay 9500 lb | C42: A | D42: 210 | E42: 420 | G42: 80 | H42: 1.6 | J42: 310 | K42: 1.409 | M42: N | Z42: E
A43: 40 | B43: Bermudagrass, Hyb, Grazing 1 AU/.5ac | C43: A | D43: 150 | E43: 300 | G43: 65 | H43: 1.6 | J43: 120 | K43: 0.96 | M43: ALL
A44: 41 | B44: Bermudagrass, Hyb, Grazing 1 AU/1ac | C44: A | D44: 135 | E44: 270 | G44: 65 | H44: 1.6 | J44: 120 | K44: 0.96 | M44: ALL
A45: 42 | B45: Bermudagrass, Hyb, Grazing 1AU/2ac | C45: A | D45: 100 | E45: 200 | G45: 65 | H45: 1.6 | J45: 120 | K45: 0.96 | M45: ALL | Z45: E
A46: 43 | B46: Bermudagrass, Hyb, Grazing 1AU/3ac | C46: A | D46: 80 | E46: 160 | G46: 65 | H46: 1.3 | J46: 120 | K46: 0.96 | M46: ALL | Z46: E
A47: 44 | B47: Bermudagrass, Hyb, Grazing 1AU/4ac | C47: A | D47: 60 | E47: 120 | G47: 65 | H47: 1.3 | J47: 100 | K47: 0.8 | M47: ALL | Z47: E
A48: 45 | B48: Bermudagrass, Hyb, Grazing 1AU/5ac | C48: A | D48: 45 | E48: 90 | G48: 50 | H48: 1 | J48: 100 | K48: 0.8 | M48: ALL | Z48: E
A49: 46 | B49: Bermudagrass, Hyb, Grazing 1AU/6 + ac | C49: A | D49: 30 | E49: 60 | G49: 50 | H49: 1 | J49: 80 | K49: 0.64 | M49: ALL | Z49: E
A50: 47 | B50: Bermudagrass, Hyb, Hay (1 cut + grazing) | C50: A | D50: 85 | E50: 170 | G50: 65 | H50: 1.3 | J50: 150 | K50: 1 | M50: N
A51: 48 | B51: Bermudagrass, Hyb, Hay 3000 lb | C51: A | D51: 37.5 | E51: 75 | G51: 50 | H51: 1 | J51: 125 | K51: 1
A52: 49 | B52: Bermudagrass, Hyb, Hay 4000 lb | C52: A | D52: 50 | E52: 100 | G52: 65 | H52: 1.3 | J52: 150 | K52: 1.2
A53: 50 | B53: Bermudagrass, Hyb, Hay 5000 lb | C53: A | D53: 62.5 | E53: 125 | G53: 80 | H53: 1.6 | J53: 175 | K53: 1.4
A54: 51 | B54: Bermudagrass, Hyb, Hay 6000 lb | C54: A | D54: 75 | E54: 150 | G54: 100 | H54: 2 | J54: 200 | K54: 1.333 | Z54: E
A55: 52 | B55: Bermudagrass, Hyb, Hay 8000 lb | C55: A | D55: 100 | E55: 200 | G55: 100 | H55: 2 | J55: 200 | K55: 1.33
A56: 53 | B56: Bermudagrass, Hyb, Hay 9000 lb | C56: A | D56: 112.5 | E56: 225 | G56: 100 | H56: 2 | J56: 200 | K56: 1.33
A57: 54 | B57: Bermudagrass, Hyb, Hay 10000 lb | C57: A | D57: 125 | E57: 250 | G57: 115 | H57: 2.3 | J57: 225 | K57: 1.5
A58: 55 | B58: Bermudagrass, Hyb, Hay 12000 lb | C58: A | D58: 150 | E58: 300 | G58: 140 | H58: 2.8 | J58: 250 | K58: 1.667 | Z58: E
A59: 56 | B59: Bermudagrass, Hyb, Hay 15000 lb | C59: A | D59: 187.5 | E59: 375 | G59: 150 | H59: 3 | J59: 275 | K59: 1.833
A60: 57 | B60: Bermudagrass, Hyb, Hay 16000 lb | C60: A | D60: 200 | E60: 400 | G60: 165 | H60: 3.3 | J60: 300 | K60: 1.667
A61: 58 | B61: Bermudagrass, Hyb, Hay 18000 lb | C61: A | D61: 225 | E61: 450 | G61: 175 | H61: 3.5 | J61: 300 | K61: 2
A62: 59 | B62: Bermudagrass, Hyb, Hay 20000 lb | C62: A | D62: 250 | E62: 500 | G62: 200 | H62: 4 | J62: 350 | K62: 1.944 | Z62: E
A63: 60 | B63: Bermudagrass, Hyb, Irr. Hay 24000 lb | C63: A | D63: 300 | E63: 600 | G63: 240 | H63: 4.8 | J63: 400 | K63: 2.222 | Z63: E
A64: 61 | B64: Bermudagrass, Hyb, Irr. Hay 28000 lb | C64: A | D64: 350 | E64: 700 | G64: 275 | H64: 5.5 | J64: 450 | K64: 2.5
A65: 62 | B65: Bermudagrass, Hyb, Irr. Hay 30000 lb | C65: A | D65: 375 | E65: 750 | G65: 275 | H65: 5.5 | J65: 425 | K65: 2.361 | Z65: E
A66: 63 | B66: Bermudagrass, Hyb, Irr. Hay 35000 lb | C66: A | D66: 437.5 | E66: 875 | G66: 300 | H66: 6 | J66: 475 | K66: 2.639
A67: 64 | B67: Bermudagrass, Hyb, Irr. Hay 36000 lb | C67: A | D67: 450 | E67: 900 | G67: 300 | H67: 6 | J67: 450 | K67: 2.5
A68: 65 | B68: Bermudagrass, Hyb, Irr. Hay 42000 lb | C68: A | D68: 525 | E68: 1050 | G68: 325 | H68: 6.5 | J68: 500 | K68: 2.778
A69: 66 | B69: Bermudagrass, NK-37 or Midland Grazing | C69: A | D69: 80 | E69: 160 | G69: 80 | H69: 1.6 | J69: 120 | K69: 0.96
A70: =A69+1 -> 67 | B70: Bermudagrass, NK-37 or Midland 7000 lb | C70: A | D70: 100 | E70: 200 | G70: 105 | H70: 2.1 | J70: 200 | K70: 1.6
A71: 68 | B71: Bermudagrass, NK-37 or Midland 12000 lb | C71: A | D71: 210 | E71: 420 | G71: 110 | H71: 2.2 | J71: 310 | K71: 1.409
A72: 69 | B72: Blue Panic, grazing | C72: A | D72: 65 | E72: 130 | G72: 55 | H72: 1.1 | J72: 40 | K72: 0.32
A73: 70 | B73: Blueberry | C73: A | D73: 30 | E73: 60 | G73: 31 | H73: 0.63 | J73: 0 | K73: 0
A74: 71 | B74: Bluestems, Native or KR Grazing or Hay | C74: A | D74: 65 | E74: 130 | G74: 55 | H74: 1.1 | J74: 120 | K74: 0.96
A75: 72 | B75: Bluestems, OW Improved, Grazing or Hay | C75: A | D75: 120 | E75: 240 | G75: 65 | H75: 1.3 | J75: 120 | K75: 0.923
A76: 73 | B76: Broccoli - Field Production | C76: A | D76: 40 | E76: 80 | G76: 106 | H76: 1.77 | J76: 80 | K76: 0.64
A77: 74 | B77: Buffelgrass (Heavy Grazing or Hay + Graze) | C77: A | D77: 105 | E77: 210 | G77: 65 | H77: 1.3 | J77: 120 | K77: 0.96 | M77: N
A78: 75 | B78: Buffelgrass (Moderate Grazing) | C78: A | D78: 75 | E78: 150 | G78: 65 | H78: 1.3 | J78: 120 | K78: 0.96 | M78: N
A79: 76 | B79: Buffelgrass Hay 4000 lb | C79: A | D79: 40 | E79: 80 | G79: 65 | H79: 1.3 | J79: 80 | K79: 0.64 | M79: N | Z79: E
A80: 77 | B80: Buffelgrass Hay 6000 lb | C80: A | D80: 80 | E80: 160 | G80: 80 | H80: 1.3 | J80: 100 | K80: 0.8 | M80: ALL | Z80: E
A81: 78 | B81: Buffelgrass Hay 8000 lb | C81: A | D81: 120 | E81: 240 | G81: 105 | H81: 2.1 | J81: 120 | K81: 0.96 | M81: N
A82: 79 | B82: Cabbage - Field Production | C82: A | D82: 50 | E82: 100 | G82: 131 | H82: 2.19 | J82: 160 | K82: 1.27
A83: 80 | B83: Cabbage-Chinese | C83: A | D83: 50 | E83: 100 | G83: 131 | H83: 2.19 | J83: 160 | K83: 1.27
A84: 81 | B84: Cane | C84: A | D84: 30 | E84: 60 | G84: 55 | H84: 1.1 | J84: 40 | K84: 0.308 | M84: ALL
A85: 82 | B85: Cantaloupe - Field Production | C85: A | D85: 20 | E85: 40 | G85: 106 | H85: 1.77 | J85: 80 | K85: 0.64
A86: 83 | B86: Carrots - Field Production | C86: A | D86: 40 | E86: 80 | G86: 106 | H86: 2.13 | J86: 120 | K86: 0.95
A87: 84 | B87: Cauliflower - Field Production | C87: A | D87: 40 | E87: 80 | G87: 106 | H87: 2.13 | J87: 120 | K87: 0.95
A88: 85 | B88: Citrus | C88: A | D88: 50 | E88: 100 | G88: 81 | H88: 1.63 | J88: 130 | K88: 0.95
A89: 86 | B89: Clover, Vetch (Prepared Seedbed) | C89: A | D89: 5 | E89: 10 | G89: 105 | H89: 2.1 | J89: 120 | K89: 0.686
A90: 87 | B90: Clover, Vetch (Sod Seeded) | C90: A | D90: 30 | E90: 60 | G90: 105 | H90: 2.1 | J90: 120 | K90: 0.686 | M90: ALL
A91: 88 | B91: Clover, Vetch + Ryegrass or Sm.Grain | C91: A | D91: 55 | E91: 110 | G91: 105 | H91: 2.1 | J91: 120 | K91: 0.686
A92: 89 | B92: Collards | C92: A | D92: 40 | E92: 80 | G92: 106 | H92: 2.13 | J92: 120 | K92: 0.95
A93: 90 | B93: Corn 100 bu | C93: A | D93: 60 | E93: 120 | G93: 80 | H93: 1.6 | J93: 110 | K93: 0.75
A94: 91 | B94: Corn 110 bu | C94: A | D94: 60 | E94: 120 | G94: 105 | H94: 2.1 | J94: 110 | K94: 0.75
A95: 92 | B95: Corn 120 bu | C95: A | D95: 72 | E95: 144 | G95: 105 | H95: 2.1 | J95: 130 | K95: 1.03
A96: 93 | B96: Corn 130 bu | C96: A | D96: 72 | E96: 144 | G96: 105 | H96: 2.1 | J96: 130 | K96: 1.03
A97: 94 | B97: Corn 140 bu | C97: A | D97: 82 | E97: 164 | G97: 105 | H97: 2.1 | J97: 130 | K97: 1.03
A98: 95 | B98: Corn 150 bu | C98: A | D98: 82 | E98: 164 | G98: 105 | H98: 2.1 | J98: 130 | K98: 1.03
A99: 96 | B99: Corn 160 bu | C99: A | D99: 90 | E99: 180 | G99: 130 | H99: 2.6 | J99: 140 | K99: 1.15
A100: 97 | B100: Corn 170 bu | C100: A | D100: 90 | E100: 180 | G100: 130 | H100: 2.6 | J100: 140 | K100: 1.15
A101: 98 | B101: Corn 180 bu | C101: A | D101: 105 | E101: 210 | G101: 130 | H101: 2.6 | J101: 140 | K101: 1.1
A102: 99 | B102: Corn 190 bu | C102: A | D102: 105 | E102: 210 | G102: 130 | H102: 2.6 | J102: 140 | K102: 1.1
A103: 100 | B103: Corn 200 bu | C103: A | D103: 125 | E103: 250 | G103: 130 | H103: 2.6 | J103: 140 | K103: 1.05
A104: 101 | B104: Corn 210 bu | C104: A | D104: 125 | E104: 250 | G104: 150 | H104: 3 | J104: 140 | K104: 1.05
A105: 102 | B105: Corn 220 bu | C105: A | D105: 140 | E105: 280 | G105: 150 | H105: 3 | J105: 150 | K105: 1.1
A106: 103 | B106: Corn 230 bu | C106: A | D106: 140 | E106: 280 | G106: 150 | H106: 3 | J106: 150 | K106: 1.1
A107: 104 | B107: Corn 240 bu | C107: A | D107: 150 | E107: 300 | G107: 150 | H107: 3 | J107: 150 | K107: 1.05
A108: 105 | B108: Corn 250 bu | C108: A | D108: 150 | E108: 300 | G108: 175 | H108: 3.5 | J108: 150 | K108: 1.05
A109: 106 | B109: Corn 260 bu | C109: A | D109: 160 | E109: 320 | G109: 175 | H109: 3.5 | J109: 150 | K109: 1.05
A110: 107 | B110: Corn 270 bu | C110: A | D110: 160 | E110: 320 | G110: 175 | H110: 3.5 | J110: 150 | K110: 1.05
A111: 108 | B111: Corn 70 bu or less | C111: A | D111: 45 | E111: 90 | G111: 80 | H111: 1.6 | J111: 80 | K111: 0.64
A112: 109 | B112: Corn 80 bu | C112: A | D112: 60 | E112: 120 | G112: 80 | H112: 1.6 | J112: 80 | K112: 0.64
A113: 110 | B113: Corn 90 bu | C113: A | D113: 60 | E113: 120 | G113: 80 | H113: 1.6 | J113: 110 | K113: 0.75
A114: 111 | B114: Cotton 0.5 bale | C114: A | D114: 12.5 | E114: 25 | G114: 55 | H114: 1.1 | J114: 30 | K114: 0.24 | M114: ALL | Z114: E
A115: 112 | B115: Cotton 0.75 bale | C115: A | D115: 18.75 | E115: 37.5 | G115: 55 | H115: 1.1 | J115: 30 | K115: 0.24 | M115: ALL | Z115: E
A116: 113 | B116: Cotton 1 bale | C116: A | D116: 25 | E116: 50 | G116: 55 | H116: 1.1 | J116: 30 | K116: 0.24
A117: 114 | B117: Cotton 1.25 bale | C117: A | D117: 31.25 | E117: 62.5 | G117: 80 | H117: 1.6 | J117: 50 | K117: 0.4 | M117: ALL | Z117: E
A118: 115 | B118: Cotton 1.5 bale | C118: A | D118: 37.5 | E118: 75 | G118: 80 | H118: 1.6 | J118: 50 | K118: 0.4
A119: 116 | B119: Cotton 1.75 bale | C119: A | D119: 43.75 | E119: 87.5 | G119: 105 | H119: 2.1 | J119: 120 | K119: 0.95 | M119: ALL | Z119: E
A120: 117 | B120: Cotton 2 bale | C120: A | D120: 50 | E120: 100 | G120: 105 | H120: 2.1 | J120: 120 | K120: 0.95
A121: 118 | B121: Cotton 2.25 bale | C121: A | D121: 56.25 | E121: 112.5 | G121: 105 | H121: 2.1 | J121: 120 | K121: 0.95 | M121: ALL | Z121: E
A122: 119 | B122: Cotton 2.5 bale | C122: A | D122: 62.5 | E122: 125 | G122: 105 | H122: 2.1 | J122: 120 | K122: 0.95
A123: 120 | B123: Cotton 2.75 bale | C123: A | D123: 68.75 | E123: 137.5 | G123: 105 | H123: 2.1 | J123: 120 | K123: 0.95 | M123: ALL | Z123: E
A124: 121 | B124: Cotton 3 bale | C124: A | D124: 75 | E124: 150 | G124: 120 | H124: 2.4 | J124: 120 | K124: 0.95
A125: 122 | B125: Cotton 3.5 bale | C125: A | D125: 87.5 | E125: 175 | G125: 120 | H125: 2.4 | J125: 120 | K125: 0.95
A126: 123 | B126: Cotton 4.0 bale | C126: A | D126: 100 | E126: 200 | G126: 130 | H126: 2.6 | J126: 120 | K126: 0.95
A127: 124 | B127: Cotton 4.5 bale | C127: A | D127: 112.5 | E127: 225 | G127: 130 | H127: 2.6 | J127: 120 | K127: 0.95
A128: 125 | B128: Cotton 5.0 bale | C128: A | D128: 125 | E128: 250 | G128: 140 | H128: 2.8 | J128: 120 | K128: 0.95
A129: 126 | B129: Cucumbers - Field Production | C129: A | D129: 40 | E129: 80 | G129: 106 | H129: 1.77 | J129: 80 | K129: 0.64
A130: 127 | B130: Dallis Grass (1 cutting plus grazing) | C130: A | D130: 115 | E130: 230 | G130: 65 | H130: 1.3 | J130: 120 | K130: 0.96
A131: 128 | B131: Dallis Grass, Grazing, 1AU/1 - 1.5 ac | C131: A | D131: 115 | E131: 230 | G131: 65 | H131: 1.3 | J131: 120 | K131: 0.96
A132: 129 | B132: Dallis Grass, Grazing, 1AU/1.5 - 2 ac | C132: A | D132: 95 | E132: 190 | G132: 65 | H132: 1.3 | J132: 120 | K132: 0.96
A133: 130 | B133: Desoto Grass | C133: A | D133: 20 | E133: 40 | G133: 55 | H133: 1.1 | J133: 120 | K133: 0.96
A134: 131 | B134: Eggplant - Field Production | C134: A | D134: 60 | E134: 120 | G134: 106 | H134: 1.77 | J134: 120 | K134: 0.95
A135: 132 | B135: Fescue, 3-4 AU/ac or Hay | C135: A | D135: 60 | E135: 120 | G135: 80 | H135: 1.6 | J135: 120 | K135: 0.96
A136: 133 | B136: Flax | C136: A | D136: 20 | E136: 40 | G136: 56 | H136: 1.13 | J136: 40 | K136: 0.32
A137: 134 | B137: Flowers | C137: S | D137: 30 | E137: 1.5 | G137: 3 | H137: 0.06 | J137: 0 | K137: 0
A138: 135 | B138: Forage Sorghum | C138: A | D138: 20 | E138: 40 | G138: 55 | H138: 1.1 | J138: 120 | K138: 0.96
A139: 136 | B139: Fruit trees | C139: S | D139: 30 | E139: 1.38 | G139: 3 | H139: 0.06 | J139: 0 | K139: 0
A140: 137 | B140: Garden | C140: AS | D140: 30 | E140: 1.38 | G140: 4 | H140: 0.08 | J140: 0 | K140: 0
A141: 138 | B141: Garlic | C141: A | D141: 50 | E141: 100 | G141: 131 | H141: 2.63 | J141: 100 | K141: 0.79
A142: 139 | B142: Golf Greens - Native and Pushup | C142: S | D142: 30 | E142: 1.5 | G142: 100 | H142: 2 | J142: 0 | K142: 0
A143: 140 | B143: Golf Greens - Sand Based | C143: S | D143: 30 | E143: 1.5 | G143: 100 | H143: 2 | J143: 0 | K143: 0
A144: 141 | B144: Grain Sorghum 1000 lb | C144: A | D144: 10 | E144: 20 | G144: 30 | H144: 0.6 | J144: 10 | K144: 0.16
A145: 142 | B145: Grain Sorghum 1500 lb | C145: A | D145: 15 | E145: 30 | G145: 30 | H145: 0.6 | J145: 15 | K145: 0.16 | M145: ALL | Z145: E
A146: 143 | B146: Grain Sorghum 2000 lb | C146: A | D146: 20 | E146: 40 | G146: 40 | H146: 0.8 | J146: 20 | K146: 0.16
A147: 144 | B147: Grain Sorghum 2500 lb | C147: A | D147: 25 | E147: 50 | G147: 50 | H147: 1 | J147: 60 | K147: 0.64 | M147: ALL | Z147: E
A148: 145 | B148: Grain Sorghum 3000 lb | C148: A | D148: 30 | E148: 60 | G148: 55 | H148: 1.1 | J148: 60 | K148: 0.64
A149: =A148+1 -> 146 | B149: Grain Sorghum 3500 lb | C149: A | D149: 35 | E149: 70 | G149: 60 | H149: 1.2 | J149: 70 | K149: 0.64 | M149: ALL | Z149: E
A150: 147 | B150: Grain Sorghum 4000 lb | C150: A | D150: 40 | E150: 80 | G150: 65 | H150: 1.3 | J150: 80 | K150: 0.64
A151: 148 | B151: Grain Sorghum 4500 lb | C151: A | D151: 45 | E151: 90 | G151: 75 | H151: 1.5 | J151: 100 | K151: 0.79 | M151: ALL | Z151: E
A152: 149 | B152: Grain Sorghum 5000 lb | C152: A | D152: 50 | E152: 100 | G152: 80 | H152: 1.6 | J152: 100 | K152: 0.79
A153: 150 | B153: Grain Sorghum 5500 lb | C153: A | D153: 55 | E153: 110 | G153: 90 | H153: 1.8 | J153: 100 | K153: 0.79 | M153: ALL | Z153: E
A154: 151 | B154: Grain Sorghum 6000 lb | C154: A | D154: 60 | E154: 120 | G154: 105 | H154: 2.1 | J154: 100 | K154: 0.79
A155: 152 | B155: Grain Sorghum 6500 lb | C155: A | D155: 65 | E155: 130 | G155: 120 | H155: 2.4 | J155: 120 | K155: 0.95 | M155: ALL | Z155: E
A156: 153 | B156: Grain Sorghum 7000 lb | C156: A | D156: 70 | E156: 140 | G156: 130 | H156: 2.6 | J156: 120 | K156: 0.95
A157: 154 | B157: Grain Sorghum 7500 lb | C157: A | D157: 75 | E157: 150 | G157: 135 | H157: 2.7 | J157: 120 | K157: 0.95 | M157: ALL | Z157: E
A158: 155 | B158: Grain Sorghum 8000 lb | C158: A | D158: 80 | E158: 160 | G158: 140 | H158: 2.8 | J158: 120 | K158: 0.95
A159: 156 | B159: Grain Sorghum 8500 lb | C159: A | D159: 85 | E159: 170 | G159: 150 | H159: 3 | J159: 140 | K159: 1.106
A160: 157 | B160: Grain Sorghum 9000 lb | C160: A | D160: 90 | E160: 180 | G160: 160 | H160: 3.2 | J160: 140 | K160: 1.106
A161: 158 | B161: Grain Sorghum 9500 lb | C161: A | D161: 95 | E161: 190 | G161: 170 | H161: 3.4 | J161: 140 | K161: 1.106
A162: 159 | B162: Grain Sorghum 10000 lb | C162: A | D162: 100 | E162: 200 | G162: 180 | H162: 3.6 | J162: 140 | K162: 1.106
A163: 160 | B163: Grapes - Field Production | C163: A | D163: 12.5 | E163: 25 | G163: 31 | H163: 0.63 | J163: 50 | K163: 0.33 | M163: N | Z163: E
A164: 161 | B164: Guar | C164: A | D164: 10 | E164: 20 | G164: 81 | H164: 1.63 | J164: 60 | K164: 0.48
A165: 162 | B165: Hay Grazer (1 cutting or light grazing) | C165: A | D165: 40 | E165: 80 | G165: 55 | H165: 1.1 | J165: 40 | K165: 0.32
A166: 163 | B166: Hay Grazer (2 cuttings or moderate grazing) | C166: A | D166: 70 | E166: 140 | G166: 55 | H166: 1.1 | J166: 120 | K166: 0.96
A167: 164 | B167: Hay Grazer (3 cuttings or heavy grazing) | C167: A | D167: 100 | E167: 200 | G167: 105 | H167: 2.1 | J167: 120 | K167: 0.96
A168: 165 | B168: Hegari | C168: A | D168: 30 | E168: 60 | G168: 80 | H168: 1.6 | J168: 60 | K168: 0.48
A169: 166 | B169: Huban Clover | C169: A | D169: 10 | E169: 20 | G169: 80 | H169: 1.6 | J169: 60 | K169: 0.48
A170: 167 | B170: Johnson Grass 1 cutting or light grazing | C170: A | D170: 40 | E170: 80 | G170: 55 | H170: 1.1 | J170: 40 | K170: 0.32
A171: 168 | B171: Johnson Grass 2 cuttings or moderate grazing | C171: A | D171: 70 | E171: 140 | G171: 55 | H171: 1.1 | J171: 40 | K171: 0.32
A172: 169 | B172: Johnson Grass 3 cuttings or heavy grazing | C172: A | D172: 100 | E172: 200 | G172: 105 | H172: 2.1 | J172: 120 | K172: 0.96
A173: 170 | B173: Kenaf | C173: A | D173: 50 | E173: 100 | G173: 65 | H173: 1.3 | J173: 120 | K173: 0.95
A174: 171 | B174: Kleingrass Grazing 1 AU/1.25 - 1.75 ac or Hay | C174: A | D174: 75 | E174: 150 | G174: 80 | H174: 1.6 | J174: 120 | K174: 0.96
A175: 172 | B175: Kleingrass Grazing 1 AU/2 - 3 ac or Hay | C175: A | D175: 65 | E175: 110 | G175: 55 | H175: 1.1 | J175: 50 | K175: 0.4
A176: 173 | B176: Kleingrass Grazing 1 AU/4ac | C176: A | D176: 40 | E176: 80 | G176: 55 | H176: 1.1 | J176: 50 | K176: 0.4 | M176: ALL | Z176: E
A177: 174 | B177: Kleingrass Grazing 1 AU/6+ ac | C177: A | D177: 25 | E177: 50 | G177: 55 | H177: 1.1 | J177: 50 | K177: 0.4 | M177: ALL | Z177: E
A178: 175 | B178: Landscape | C178: S | D178: 30 | E178: 1.38 | G178: 4 | H178: 0.08 | J178: 0 | K178: 0
A179: 176 | B179: Lawn - Bermuda, St. Augustine, or Zoyzia | C179: AS | D179: 22 | E179: 1.02 | G179: 3 | H179: 0.06 | J179: 0 | K179: 0
A180: 177 | B180: Lawn - Fescue, Buffalograss and other | C180: AS | D180: 22 | E180: 1.02 | G180: 3 | H180: 0.06 | J180: 0 | K180: 0
A181: 178 | B181: Lettuce 10 T | C181: A | D181: 50 | E181: 100 | G181: 131 | H181: 2.63 | J181: 120 | K181: 0.95 | M181: ALL | Z181: E
A182: 179 | B182: Lovegrass Grazing or Hay | C182: A | D182: 35 | E182: 70 | G182: 55 | H182: 1.1 | J182: 70 | K182: 0.318 | M182: ALL
A183: 180 | B183: Mexican Wheat | C183: A | D183: 30 | E183: 60 | G183: 55 | H183: 1.1 | J183: 60 | K183: 0.324
A184: 181 | B184: Millet (1 hay cutting or light grazing) | C184: A | D184: 20 | E184: 40 | G184: 55 | H184: 1.1 | J184: 40 | K184: 0.32
A185: 182 | B185: Millet (2 hay cutting or moderate grazing) | C185: A | D185: 50 | E185: 100 | G185: 65 | H185: 1.3 | J185: 40 | K185: 0.4
A186: 183 | B186: Mustard | C186: A | D186: 25 | E186: 50 | G186: 106 | H186: 2.13 | J186: 120 | K186: 0.95
A187: 184 | B187: Oats 60 - 80 Bu | C187: A | D187: 40 | E187: 80 | G187: 55 | H187: 1.1 | J187: 40 | K187: 0.32
A188: 185 | B188: Oats 81 - 100 Bu | C188: A | D188: 50 | E188: 100 | G188: 105 | H188: 2.1 | J188: 100 | K188: 0.79
A189: 186 | B189: Oats Hay only, 2 - 3 T | C189: A | D189: 40 | E189: 80 | G189: 55 | H189: 1.1 | J189: 40 | K189: 0.32
A190: 187 | B190: Oats Heavy Grazing plus hay or grain | C190: A | D190: 110 | E190: 220 | G190: 80 | H190: 1.6 | J190: 120 | K190: 0.96
A191: 188 | B191: Oats Light Grazing | C191: A | D191: 60 | E191: 120 | G191: 55 | H191: 1.1 | J191: 60 | K191: 0.48
A192: 189 | B192: Oats Moderate Grazing | C192: A | D192: 80 | E192: 160 | G192: 80 | H192: 1.6 | J192: 120 | K192: 0.96
A193: 190 | B193: Oats (Sod Seeded) Grazing | C193: A | D193: 70 | E193: 140 | G193: 80 | H193: 1.6 | J193: 100 | K193: 0.8
A194: 191 | B194: Okra | C194: A | D194: 20 | E194: 40 | G194: 81 | H194: 1.63 | J194: 80 | K194: 0.64
A195: 192 | B195: Onions | C195: A | D195: 50 | E195: 100 | G195: 131 | H195: 2.63 | J195: 100 | K195: 0.79
A196: 193 | B196: Peaches - Production | C196: A | D196: 20 | E196: 40 | G196: 50 | H196: 1 | J196: 150 | K196: 0.95
A197: 194 | B197: Peanuts, Dryland, 1000 - 3500 lb | C197: A | D197: 10 | E197: 20 | G197: 69 | H197: 1.38 | J197: 61 | K197: 0.29
A198: 195 | B198: Peanuts, Irrigated, 4000 - 5000 lb | C198: A | D198: 10 | E198: 20 | G198: 94 | H198: 1.88 | J198: 82 | K198: 0.39
A199: 196 | B199: Peas, Blackeye | C199: A | D199: 10 | E199: 20 | G199: 56 | H199: 1.13 | J199: 40 | K199: 0.32
A200: 197 | B200: Peas, Green | C200: A | D200: 30 | E200: 60 | G200: 56 | H200: 1.13 | J200: 40 | K200: 0.32
... 496 more rows

Sheet Jobsheet1
H1: No Direct Entry On This Page
A2: Plan for Establishment Year Only
B3: NUTRIENT MANAGEMENT JOBSHEET AND SPECIFICATIONS
A5: Landuser : | B5: =IF(Entry!$H$3="","",IF(Entry!$C$1="","",Entry!$C$1)) ->  | I5: Date : | J5: =IF(Entry!$H$3="","",IF($B$5="","",TODAY())) -> 
A6: Assisted By : | B6: =IF(Entry!$H$3="","",IF(Entry!$C$3="","",Entry!$C$3)) ->  | I6: Field No : | J6: =IF(Entry!$H$3="","",IF(Entry!$C$2="","",Entry!$C$2)) -> 
A7: PURPOSE (Mark All That Apply) | C7: Optimum Yield | F7: =IF(Entry!$H$3="","",IF(Entry!$F$2="","",Entry!$F$2)) ->  | H7: Credits From Various Sources | J7: N | K7: P2O5 | L7: K2O
C8: Quick Cover | F8: =IF(Entry!$H$3="","",IF(Entry!$F$3="","",Entry!$F$3)) -> 
C9: Water Quality | F9: =IF(Entry!$H$3="","",IF(Entry!$F$4="","",Entry!$F$4)) ->  | H9: =IF(Entry!$H$3="","",IF(Entry!$C$4="","",+"YEAR 1 ("&Entry!$C$4&")")) ->  | J9: =IF(Entry!$H$3="","",IF(Entry!$E$44="","",Entry!$E$44)) ->  | K9: =IF(Entry!$H$3="","",IF(Entry!$G$44="","",Entry!$G$44)) ->  | L9: =IF(Entry!$H$3="","",IF(Entry!$I$44="","",Entry!$I$44)) -> 
C10: Soil Condition | F10: =IF(Entry!$H$3="","",IF(Entry!$F$5="","",Entry!$F$5)) -> 
A11: Current Soil Test Levels (ppm) | D11: pH | E11: N | F11: P | G11: K
D12: =IF(Entry!$H$3="","",IF(AND(Entry!$O$6<>4,Entry!$O$6>0),"error",IF(TAMU!$A$3<>"",TAMU!$A$3,IF(#REF!<>"",#REF!,IF(#REF!<>"",#REF!,IF(#REF!<>"",#REF!,IF(#REF!<>"",#REF!,""))))))) ->  | E12: =IF(Entry!$H$3="","",IF(AND(Entry!$O$6<>4,Entry!$O$6>0),"error",IF(TAMU!$B$3<>"",TAMU!$B$3,IF(#REF!<>"",#REF!,IF(#REF!<>"",#REF!,IF(#REF!<>"",#REF!,IF(#REF!<>"",#REF!,""))))))) ->  | F12: =IF(Entry!$H$3="","",IF(AND(Entry!$O$6<>4,Entry!$O$6>0),"error",IF(TAMU!$C$3<>"",TAMU!$C$3,IF(#REF!<>"",#REF!,IF(#REF!<>"",#REF!,IF(#REF!<>"",#REF!,IF(#REF!<>"",#REF!,""))))))) ->  | G12: =IF(Entry!$H$3="","",IF(AND(Entry!$O$6<>4,Entry!$O$6>0),"error",IF(TAMU!$D$3<>"",TAMU!$D$3,IF(#REF!<>"",#REF!,IF(#REF!<>"",#REF!,IF(#REF!<>"",#REF!,IF(#REF!<>"",#REF!,""))))))) -> 
A13: =IF(Specs!A6="manual over-ride used for year 1", "Manual Over-ride Used","") ->  | D13: "Approximate Texas A&M Equivalent"
A14: =IF(Entry!$H$3="","",+"YEAR 1 ("&Entry!$C$4&")") ->  | B14: =IF(Entry!$H$3="","","Recommended Rates and Specifications") ->  | J14: =IF(Entry!$H$3="","","(# / Acre)" ) -> 
B15: =IF(Entry!$H$3="","","Crop / Grass Species And Yield") ->  | F15: =IF(Entry!$H$3="","",IF(Entry!$B$22="","",Entry!$B$22)) ->  | J15: =IF(Entry!$H$3="","","N") ->  | K15: =IF(Entry!$H$3="","","P2O5") ->  | L15: =IF(Entry!$H$3="","","K2O") -> 
B16: =IF(Entry!$H$3="","","Tons Lime ( If Needed ) =") ->  | F16: =IF(Entry!$H$3="","",IF(Entry!$H$22="","",Entry!$H$22)) ->  | G16: =IF(Entry!$H$3="","","Max.NutrientsNeededToMeetYieldGoal") ->  | J16: =IF(Entry!$H$3="","",IF(Entry!$E$22="","",Entry!$E$22)) ->  | K16: =IF(Entry!$H$3="","",IF(Entry!$F$22="","",Entry!$F$22)) ->  | L16: =IF(Entry!$H$3="","",IF(Entry!$G$22="","",Entry!$G$22)) -> 
B17: =IF(Entry!$H$3="","","SPECIFICATIONS ( Including Sensitive Areas ) Method, Form, Timing Of Application And Other Notes") -> 
A18: =IF(Entry!$H$3="","",IF(Specs!$A$12="","",Specs!$A$12)) -> 

Sheet Jobsheet3
H1: No Direct Entry On This Page
B2: NUTRIENT MANAGEMENT JOBSHEET AND SPECIFICATIONS
A4: Landuser : | B4: =IF(Entry!$C$5<25,"",IF(Entry!$C$1="","",Entry!$C$1)) -> example | I4: Date : | J4: =IF(Entry!$C$5<25,"",IF($B$4="","",TODAY())) -> 2011-02-23
A5: Assisted By : | B5: =IF(Entry!$C$5<25,"",IF(Entry!$C$3="","",Entry!$C$3)) ->  | I5: Field No : | J5: =IF(Entry!$C$5<25,"",IF(Entry!$C$2="","",Entry!$C$2)) -> 1
A6: PURPOSE (Mark All That Apply) | C6: Optimum Yield | F6: =IF(Entry!$C$5<25,"",IF(Entry!$F$2="","",Entry!$F$2)) -> x | H6: Credits From Various Sources | J6: N | K6: P2O5 | L6: K2O
C7: Quick Cover | F7: =IF(Entry!$C$5<25,"",IF(Entry!$F$3="","",Entry!$F$3)) -> 
C8: Water Quality | F8: =IF(Entry!$C$5<25,"",IF(Entry!$F$4="","",Entry!$F$4)) ->  | H8: =IF(Entry!$C$5<25,"",IF(Entry!$C$4="","",+"YEAR 1 ("&Entry!$C$4&")")) -> YEAR 1 (2007) | J8: =IF(Entry!$C$5<25,"",IF(Entry!$E$44="","",Entry!$E$44)) -> 0 | K8: =IF(Entry!$C$5<25,"",IF(Entry!$G$44="","",Entry!$G$44)) -> 0 | L8: =IF(Entry!$C$5<25,"",IF(Entry!$I$44="","",Entry!$I$44)) -> 0
C9: Soil Condition | F9: =IF(Entry!$C$5<25,"",IF(Entry!$F$5="","",Entry!$F$5)) ->  | H9: =IF(Entry!$C$5<25,"",IF(Entry!$C$4="","",+"YEAR 2 ("&Entry!$C$4+1&")")) -> YEAR 2 (2008) | J9: =IF(Entry!$C$5<25,"",IF(Entry!$E$62="","",Entry!$E$62)) -> 0 | K9: =IF(Entry!$C$5<25,"",IF(Entry!$G$62="","",Entry!$G$62)) -> 0 | L9: =IF(Entry!$C$5<25,"",IF(Entry!$I$62="","",Entry!$I$62)) -> 0
A10: Current Soil Test Levels (ppm) | D10: pH | E10: N | F10: P | G10: K | H10: =IF(Entry!$C$5<25,"",IF(Entry!$C$4="","",+"YEAR 3 ("&Entry!$C$4+2&")")) -> YEAR 3 (2009) | J10: =IF(Entry!$C$5<25,"",IF(Entry!$E$80="","",Entry!$E$80)) -> 0 | K10: =IF(Entry!$C$5<25,"",IF(Entry!$G$80="","",Entry!$G$80)) -> 0 | L10: =IF(Entry!$C$5<25,"",IF(Entry!$I$80="","",Entry!$I$80)) -> 0
D11: =IF(Entry!$C$5<25,"",IF(AND(Entry!$O$6<>4,Entry!$O$6>0),"error",IF(TAMU!$A$3<>"",TAMU!$A$3,IF(#REF!<>"",#REF!,IF(#REF!<>"",#REF!,IF(#REF!<>"",#REF!,IF(#REF!<>"",#REF!,""))))))) -> 5.6 | E11: =IF(Entry!$C$5<25,"",IF(AND(Entry!$O$6<>4,Entry!$O$6>0),"error",IF(TAMU!$B$3<>"",TAMU!$B$3,IF(#REF!<>"",#REF!,IF(#REF!<>"",#REF!,IF(#REF!<>"",#REF!,IF(#REF!<>"",#REF!,""))))))) -> 2 | F11: =IF(Entry!$C$5<25,"",IF(AND(Entry!$O$6<>4,Entry!$O$6>0),"error",IF(TAMU!$C$3<>"",TAMU!$C$3,IF(#REF!<>"",#REF!,IF(#REF!<>"",#REF!,IF(#REF!<>"",#REF!,IF(#REF!<>"",#REF!,""))))))) -> 5 | G11: =IF(Entry!$C$5<25,"",IF(AND(Entry!$O$6<>4,Entry!$O$6>0),"error",IF(TAMU!$D$3<>"",TAMU!$D$3,IF(#REF!<>"",#REF!,IF(#REF!<>"",#REF!,IF(#REF!<>"",#REF!,IF(#REF!<>"",#REF!,""))))))) -> 80 | H11: =IF(Entry!$C$5<25,"",IF(Entry!$C$4="","",+"YEAR 4 ("&Entry!$C$4+3&")")) -> YEAR 4 (2010) | J11: =IF(Entry!$C$5<25,"",IF(Entry!$E$98="","",Entry!$E$98)) -> 0 | K11: =IF(Entry!$C$5<25,"",IF(Entry!$G$98="","",Entry!$G$98)) -> 0 | L11: =IF(Entry!$C$5<25,"",IF(Entry!$I$98="","",Entry!$I$98)) -> 0
A12: =IF(Specs!A6="manual over-ride used for year 1", "Manual Over-ride Used","") ->  | D12: "Approximate Texas A&M Equivalent" | H12: =IF(Entry!$C$5<25,"",IF(Entry!$C$4="","",+"YEAR 5 ("&Entry!$C$4+4&")")) -> YEAR 5 (2011) | J12: =IF(Entry!$C$5<25,"",IF(Entry!$E$116="","",Entry!$E$116)) -> 0 | K12: =IF(Entry!$C$5<25,"",IF(Entry!$G$116="","",Entry!$G$116)) -> 0 | L12: =IF(Entry!$C$5<25,"",IF(Entry!$I$116="","",Entry!$I$116)) -> 0
A13: =IF(Entry!$C$5<25,"",+"YEAR 1 ("&Entry!$C$4&")") -> YEAR 1 (2007) | B13: =IF(Entry!$C$5<25,"","Recommended Rates and Specifications") -> Recommended Rates and Specifications | J13: =IF(Entry!$C$5<25,"","(# / Acre)" ) -> (# / Acre)
B14: =IF(Entry!$C$5<25,"","Crop / Grass Species And Yield") -> Crop / Grass Species And Yield | F14: =IF(Entry!$C$5<25,"",IF(Entry!$B$22="","",Entry!$B$22)) -> Corn 200 bu | J14: =IF(Entry!$C$5<25,"","N") -> N | K14: =IF(Entry!$C$5<25,"","P2O5") -> P2O5 | L14: =IF(Entry!$C$5<25,"","K2O") -> K2O
B15: =IF(Entry!$C$5<25,"","Tons Lime ( If Needed ) =") -> Tons Lime ( If Needed ) = | F15: =IF(Entry!$C$5<25,"",IF(Entry!$H$22="","",Entry!$H$22)) -> 1 | G15: =IF(Entry!$C$5<25,"","Soil Test Recommended Nutrients For Yield Goal") -> Soil Test Recommended Nutrients For Yield Goal | J15: =IF(Entry!$C$5<25,"",IF(Entry!$E$22="","",Entry!$E$22)) -> 245 | K15: =IF(Entry!$C$5<25,"",IF(Entry!$F$22="","",Entry!$F$22)) -> 115 | L15: =IF(Entry!$C$5<25,"",IF(Entry!$G$22="","",Entry!$G$22)) -> 120
B16: =IF(Entry!$C$5<25,"","SPECIFICATIONS ( Including Sensitive Areas ) Method, Form, Timing Of Application And Other Notes") -> SPECIFICATIONS ( Including Sensitive Areas ) Method, Form, Timing Of Application And Other Notes
A17: =IF(Entry!$C$5<25,"",IF(Specs!$A$12="","",Specs!$A$12)) -> 
A18: =IF(Entry!$C$5<25,"",+"YEAR 2 ("&Entry!$C$4+1&")") -> YEAR 2 (2008) | B18: =IF(Entry!$C$5<25,"","Recommended Rates and Specifications") -> Recommended Rates and Specifications | J18: =IF(Entry!$C$5<25,"","(# / Acre) 1/") -> (# / Acre) 1/
B19: =IF(Entry!$C$5<25,"","Crop / Grass Species And Yield") -> Crop / Grass Species And Yield | F19: =IF(Entry!$C$5<25,"",IF(Entry!$B$23="","",Entry!$B$23)) -> Corn 100 bu | J19: =IF(Entry!$C$5<25,"","N") -> N | K19: =IF(Entry!$C$5<25,"","P2O5") -> P2O5 | L19: =IF(Entry!$C$5<25,"","K2O") -> K2O
B20: =IF(Entry!$C$5<25,"","Tons Lime ( If Needed ) =") -> Tons Lime ( If Needed ) = | F20: =IF(Entry!$C$5<25,"",IF(Entry!$H$23="","",Entry!$H$23)) ->  | G20: =IF(Entry!$C$5<25,"","Max. Nutrients To Meet Crop Requirement") -> Max. Nutrients To Meet Crop Requirement | J20: =IF(Entry!$C$5<25,"",IF(Entry!$E$23="","",Entry!$E$23)) -> 120 | K20: =IF(Entry!$C$5<25,"",IF(Entry!$F$23="","",Entry!$F$23)) -> 80 | L20: =IF(Entry!$C$5<25,"",IF(Entry!$G$23="","",Entry!$G$23)) -> 110
B21: =IF(Entry!$C$5<25,"","SPECIFICATIONS ( Including Sensitive Areas ) Method, Form, Timing Of Application And Other Notes") -> SPECIFICATIONS ( Including Sensitive Areas ) Method, Form, Timing Of Application And Other Notes
A22: =IF(Entry!$C$5<25,"",IF(Specs!$A$34="","",Specs!$A$34)) -> 
A23: =IF(Entry!$C$5<25,"",+"YEAR 3 ("&Entry!$C$4+2&")") -> YEAR 3 (2009) | B23: =IF(Entry!$C$5<25,"","Recommended Rates and Specifications") -> Recommended Rates and Specifications | J23: =IF(Entry!$C$5<25,"","(# / Acre) 1/") -> (# / Acre) 1/
B24: =IF(Entry!$C$5<25,"","Crop / Grass Species And Yield") -> Crop / Grass Species And Yield | F24: =IF(Entry!$C$5<25,"",IF(Entry!$B$24="","",Entry!$B$24)) -> Bermudagrass, Hyb, Hay 12000 lb | J24: =IF(Entry!$C$5<25,"","N") -> N | K24: =IF(Entry!$C$5<25,"","P2O5") -> P2O5 | L24: =IF(Entry!$C$5<25,"","K2O") -> K2O
B25: =IF(Entry!$C$5<25,"","Tons Lime ( If Needed ) =") -> Tons Lime ( If Needed ) = | F25: =IF(Entry!$C$5<25,"",IF(Entry!$H$24="","",Entry!$H$24)) ->  | G25: =IF(Entry!$C$5<25,"","Max. Nutrients Needed To Meet Crop Requirement") -> Max. Nutrients Needed To Meet Crop Requirement | J25: =IF(Entry!$C$5<25,"",IF(Entry!$E$24="","",Entry!$E$24)) -> 300 | K25: =IF(Entry!$C$5<25,"",IF(Entry!$F$24="","",Entry!$F$24)) -> 140 | L25: =IF(Entry!$C$5<25,"",IF(Entry!$G$24="","",Entry!$G$24)) -> 250
B26: =IF(Entry!$C$5<25,"","SPECIFICATIONS ( Including Sensitive Areas ) Method, Form, Timing Of Application And Other Notes") -> SPECIFICATIONS ( Including Sensitive Areas ) Method, Form, Timing Of Application And Other Notes
A27: =IF(Entry!$C$5<25,"",IF(Specs!$A$56="","",Specs!$A$56)) -> 
A28: N and P2O5 rates will not exceed recommended rates by more than 10%
A29: 1/ For Year 2 and beyond, when no new soil tests are obtained and nutrient budgets are used:
A30: N is based on Crop Requirement; P2O5 is be based on Crop Requirement if previous years soil test rating is not > H;
A31: K2O is based on Crop Requirement if previous years soil test rating is not > H.

Sheet Jobsheet5
H1: No Direct Entry On This Page
B2: NUTRIENT MANAGEMENT JOBSHEET AND SPECIFICATIONS
A4: Landuser : | B4: =IF(Entry!$C$5>=25,"",IF(Entry!$C$1="","",Entry!$C$1)) ->  | I4: Date : | J4: =IF(Entry!$C$5>=25,"",IF($B$4="","",TODAY())) -> 
A5: Assisted By : | B5: =IF(Entry!$C$5>=25,"",IF(Entry!$C$3="","",Entry!$C$3)) ->  | I5: Field No : | J5: =IF(Entry!$C$5>=25,"",IF(Entry!$C$2="","",Entry!$C$2)) -> 
A6: PURPOSE (Mark All That Apply) | C6: Optimum Yield | F6: =IF(Entry!$C$5>=25,"",IF(Entry!$F$2="","",Entry!$F$2)) ->  | H6: Credits From Various Sources | J6: N | K6: P2O5 | L6: K2O
C7: Quick Cover | F7: =IF(Entry!$C$5>=25,"",IF(Entry!$F$3="","",Entry!$F$3)) -> 
C8: Water Quality | F8: =IF(Entry!$C$5>=25,"",IF(Entry!$F$4="","",Entry!$F$4)) ->  | H8: =IF(Entry!$C$5>=25,"",IF(Entry!$C$4="","",+"YEAR 1 ("&Entry!$C$4&")")) ->  | J8: =IF(Entry!$C$5>=25,"",IF(Entry!$E$44="","",Entry!$E$44)) ->  | K8: =IF(Entry!$C$5>=25,"",IF(Entry!$G$44="","",Entry!$G$44)) ->  | L8: =IF(Entry!$C$5>=25,"",IF(Entry!$I$44="","",Entry!$I$44)) -> 
C9: Soil Condition | F9: =IF(Entry!$C$5>=25,"",IF(Entry!$F$5="","",Entry!$F$5)) ->  | H9: =IF(Entry!$C$5>=25,"",IF(Entry!$C$4="","",+"YEAR 2 ("&Entry!$C$4+1&")")) ->  | J9: =IF(Entry!$C$5>=25,"",IF(Entry!$E$62="","",Entry!$E$62)) ->  | K9: =IF(Entry!$C$5>=25,"",IF(Entry!$G$62="","",Entry!$G$62)) ->  | L9: =IF(Entry!$C$5>=25,"",IF(Entry!$I$62="","",Entry!$I$62)) -> 
A10: Current Soil Test Levels (ppm) | D10: pH | E10: N | F10: P | G10: K | H10: =IF(Entry!$C$5>=25,"",IF(Entry!$C$4="","",+"YEAR 3 ("&Entry!$C$4+2&")")) ->  | J10: =IF(Entry!$C$5>=25,"",IF(Entry!$E$80="","",Entry!$E$80)) ->  | K10: =IF(Entry!$C$5>=25,"",IF(Entry!$G$80="","",Entry!$G$80)) ->  | L10: =IF(Entry!$C$5>=25,"",IF(Entry!$I$80="","",Entry!$I$80)) -> 
D11: =IF(Entry!$C$5>=25,"",IF(AND(Entry!$O$6<>4,Entry!$O$6>0),"error",IF(TAMU!$A$3<>"",TAMU!$A$3,IF(#REF!<>"",#REF!,IF(#REF!<>"",#REF!,IF(#REF!<>"",#REF!,IF(#REF!<>"",#REF!,""))))))) ->  | E11: =IF(Entry!$C$5>=25,"",IF(AND(Entry!$O$6<>4,Entry!$O$6>0),"error",IF(TAMU!$B$3<>"",TAMU!$B$3,IF(#REF!<>"",#REF!,IF(#REF!<>"",#REF!,IF(#REF!<>"",#REF!,IF(#REF!<>"",#REF!,""))))))) ->  | F11: =IF(Entry!$C$5>=25,"",IF(AND(Entry!$O$6<>4,Entry!$O$6>0),"error",IF(TAMU!$C$3<>"",TAMU!$C$3,IF(#REF!<>"",#REF!,IF(#REF!<>"",#REF!,IF(#REF!<>"",#REF!,IF(#REF!<>"",#REF!,""))))))) ->  | G11: =IF(Entry!$C$5>=25,"",IF(AND(Entry!$O$6<>4,Entry!$O$6>0),"error",IF(TAMU!$D$3<>"",TAMU!$D$3,IF(#REF!<>"",#REF!,IF(#REF!<>"",#REF!,IF(#REF!<>"",#REF!,IF(#REF!<>"",#REF!,""))))))) ->  | H11: =IF(Entry!$C$5>=25,"",IF(Entry!$C$4="","",+"YEAR 4 ("&Entry!$C$4+3&")")) ->  | J11: =IF(Entry!$C$5>=25,"",IF(Entry!$E$98="","",Entry!$E$98)) ->  | K11: =IF(Entry!$C$5>=25,"",IF(Entry!$G$98="","",Entry!$G$98)) ->  | L11: =IF(Entry!$C$5>=25,"",IF(Entry!$I$98="","",Entry!$I$98)) -> 
D12: "Approximate Texas A&M Equivalent" | H12: =IF(Entry!$C$5>=25,"",IF(Entry!$C$4="","",+"YEAR 5 ("&Entry!$C$4+4&")")) ->  | J12: =IF(Entry!$C$5>=25,"",IF(Entry!$E$116="","",Entry!$E$116)) ->  | K12: =IF(Entry!$C$5>=25,"",IF(Entry!$G$116="","",Entry!$G$116)) ->  | L12: =IF(Entry!$C$5>=25,"",IF(Entry!$I$116="","",Entry!$I$116)) -> 
A13: =IF(Entry!$C$5>=25,"",+"YEAR 1 ("&Entry!$C$4&")") ->  | B13: =IF(Entry!$C$5>=25,"","Recommended Rates and Specifications") ->  | J13: =IF(Entry!$C$5>=25,"","(# / Acre)") -> 
B14: =IF(Entry!$C$5>=25,"","Crop / Grass Species And Yield") ->  | F14: =IF(Entry!$C$5>=25,"",IF(Entry!$B$22="","",Entry!$B$22)) ->  | J14: =IF(Entry!$C$5>=25,"","N") ->  | K14: =IF(Entry!$C$5>=25,"","P2O5") ->  | L14: =IF(Entry!$C$5>=25,"","K2O") -> 
B15: =IF(Entry!$C$5>=25,"","Tons Lime ( If Needed ) =") ->  | F15: =IF(Entry!$C$5>=25,"",IF(Entry!$H$22="","",Entry!$H$22)) ->  | G15: =IF(Entry!$C$5>=25,"","Max. Nutrients Needed To Meet Yield Goal") ->  | J15: =IF(Entry!$C$5>=25,"",IF(Entry!$E$22="","",Entry!$E$22)) ->  | K15: =IF(Entry!$C$5>=25,"",IF(Entry!$F$22="","",Entry!$F$22)) ->  | L15: =IF(Entry!$C$5>=25,"",IF(Entry!$G$22="","",Entry!$G$22)) -> 
B16: =IF(Entry!$C$5>=25,"","SPECIFICATIONS ( Including Sensitive Areas ) Method, Form, Timing Of Application And Other Notes") -> 
A17: =IF(Entry!$C$5>=25,"",IF(Specs!$A$12="","",Specs!$A$12)) -> 
A18: =IF(Entry!$C$5>=25,"",+"YEAR 2 ("&Entry!$C$4+1&")") ->  | B18: =IF(Entry!$C$5>=25,"","Recommended Rates and Specifications") ->  | J18: =IF(Entry!$C$5>=25,"","(# / Acre)") -> 
B19: =IF(Entry!$C$5>=25,"","Crop / Grass Species And Yield") ->  | F19: =IF(Entry!$C$5>=25,"",IF(Entry!$B$23="","",Entry!$B$23)) ->  | J19: =IF(Entry!$C$5>=25,"","N") ->  | K19: =IF(Entry!$C$5>=25,"","P2O5") ->  | L19: =IF(Entry!$C$5>=25,"","K2O") -> 
B20: =IF(Entry!$C$5>=25,"","Tons Lime ( If Needed ) =") ->  | F20: =IF(Entry!$C$5>=25,"",IF(Entry!$H$23="","",Entry!$H$23)) ->  | G20: =IF(Entry!$C$5>=25,"","Max. Nutrients Needed To Meet Yield Goal") ->  | J20: =IF(Entry!$C$5>=25,"",IF(Entry!$E$23="","",Entry!$E$23)) ->  | K20: =IF(Entry!$C$5>=25,"",IF(Entry!$F$23="","",Entry!$F$23)) ->  | L20: =IF(Entry!$C$5>=25,"",IF(Entry!$G$23="","",Entry!$G$23)) -> 
B21: =IF(Entry!$C$5>=25,"","SPECIFICATIONS ( Including Sensitive Areas ) Method, Form, Timing Of Application And Other Notes") -> 
A22: =IF(Entry!$C$5>=25,"",IF(Specs!$A$34="","",Specs!$A$34)) -> 
A23: =IF(Entry!$C$5>=25,"",+"YEAR 3 ("&Entry!$C$4+2&")") ->  | B23: =IF(Entry!$C$5>=25,"","Recommended Rates and Specifications") ->  | J23: =IF(Entry!$C$5>=25,"","(# / Acre)") -> 
B24: =IF(Entry!$C$5>=25,"","Crop / Grass Species And Yield") ->  | F24: =IF(Entry!$C$5>=25,"",IF(Entry!$B$24="","",Entry!$B$24)) ->  | J24: =IF(Entry!$C$5>=25,"","N") ->  | K24: =IF(Entry!$C$5>=25,"","P2O5") ->  | L24: =IF(Entry!$C$5>=25,"","K2O") -> 
B25: =IF(Entry!$C$5>=25,"","Tons Lime ( If Needed ) =") ->  | F25: =IF(Entry!$C$5>=25,"",IF(Entry!$H$24="","",Entry!$H$24)) ->  | G25: =IF(Entry!$C$5>=25,"","Max. Nutrients Needed To Meet Yield Goal") ->  | J25: =IF(Entry!$C$5>=25,"",IF(Entry!$E$24="","",Entry!$E$24)) ->  | K25: =IF(Entry!$C$5>=25,"",IF(Entry!$F$24="","",Entry!$F$24)) ->  | L25: =IF(Entry!$C$5>=25,"",IF(Entry!$G$24="","",Entry!$G$24)) -> 
B26: =IF(Entry!$C$5>=25,"","SPECIFICATIONS ( Including Sensitive Areas ) Method, Form, Timing Of Application And Other Notes") -> 
A27: =IF(Entry!$C$5>=25,"",IF(Specs!$A$56="","",Specs!$A$56)) -> 
A28: =IF(Entry!$C$5>=25,"", +"YEAR 4 ("&Entry!$C$4+3&")") ->  | B28: =IF(Entry!$C$5>=25,"","Recommended Rates and Specifications") ->  | J28: =IF(Entry!$C$5>=25,"","(# / Acre)") -> 
B29: =IF(Entry!$C$5>=25,"","Crop / Grass Species And Yield") ->  | F29: =IF(Entry!$C$5>=25,"",IF(Entry!$B$25="","",Entry!$B$25)) ->  | J29: =IF(Entry!$C$5>=25,"","N") ->  | K29: =IF(Entry!$C$5>=25,"","P2O5") ->  | L29: =IF(Entry!$C$5>=25,"","K2O") -> 
B30: =IF(Entry!$C$5>=25,"","Tons Lime ( If Needed ) =") ->  | F30: =IF(Entry!$C$5>=25,"",IF(Entry!$H$25="","",Entry!$H$25)) ->  | G30: =IF(Entry!$C$5>=25,"","Max. Nutrients Needed To Meet Yield Goal") ->  | J30: =IF(Entry!$C$5>=25,"",IF(Entry!$E$25="","",Entry!$E$25)) ->  | K30: =IF(Entry!$C$5>=25,"",IF(Entry!$F$25="","",Entry!$F$25)) ->  | L30: =IF(Entry!$C$5>=25,"",IF(Entry!$G$25="","",Entry!$G$25)) -> 
B31: =IF(Entry!$C$5>=25,"","SPECIFICATIONS ( Including Sensitive Areas ) Method, Form, Timing Of Application And Other Notes") -> 
A32: =IF(Entry!$C$5>=25,"",IF(Specs!$A$78="","",Specs!$A$78)) -> 
A33: =IF(Entry!$C$5>=25,"",+"YEAR 5 ("&Entry!$C$4+5&")") ->  | B33: =IF(Entry!$C$5>=25,"","Recommended Rates and Specifications") ->  | J33: =IF(Entry!$C$5>=25,"","(# / Acre)") -> 
B34: =IF(Entry!$C$5>=25,"","Crop / Grass Species And Yield") ->  | F34: =IF(Entry!$C$5>=25,"",IF(Entry!$B$26="","",Entry!$B$26)) ->  | J34: =IF(Entry!$C$5>=25,"","N") ->  | K34: =IF(Entry!$C$5>=25,"","P2O5") ->  | L34: =IF(Entry!$C$5>=25,"","K2O") -> 
B35: =IF(Entry!$C$5>=25,"","Tons Lime ( If Needed ) =") ->  | F35: =IF(Entry!$C$5>=25,"",IF(Entry!$H$26="","",Entry!$H$26)) ->  | G35: =IF(Entry!$C$5>=25,"","Max. Nutrients Needed To Meet Yield Goal") ->  | J35: =IF(Entry!$C$5>=25,"",IF(Entry!$E$26="","",Entry!$E$26)) ->  | K35: =IF(Entry!$C$5>=25,"",IF(Entry!$F$26="","",Entry!$F$26)) ->  | L35: =IF(Entry!$C$5>=25,"",IF(Entry!$G$26="","",Entry!$G$26)) -> 
B36: =IF(Entry!$C$5>=25,"","SPECIFICATIONS ( Including Sensitive Areas ) Method, Form, Timing Of Application And Other Notes") -> 
A37: =IF(Entry!$C$5>=25,"",IF(Specs!$A$100="","",Specs!$A$100)) -> 
A38: 1/ For Year 2 and beyond, when no new soil tests are obtained and nutrient budgets are used:
A39: N is based on Crop Requirement.
A40: P2O5 is be based on Crop Requirement if previous years soil test rating is not > H.
A41: K2O is based on Crop Requirement if previous years soil test rating is not > H

Sheet O&M
E1: No Direct Entry On This Page
B2: Landuser: | C2: =IF(Entry!$C$1="","",Entry!$C$1) -> example | E2: Field: | F2: =IF(Entry!$C$2="","",Entry!$C$2) -> 1
B3: Operations and Maintenance
B4: The producer should review this plan annually. In addition, this plan should be reviewed with and revised by a Certified Nutrient Management Specialist immediately after new soil tests and recommendations have been obtained.
B5: At a minimum, all fields with inorganic nutrients applied will have a soil test every | F5: =IF(Entry!$C$5>=25,"3 years.","5 years.") -> 3 years. | G5: In areas where animal
B6: wastes are applied, a soil test is required every other year. STATE REGULATIONS TAKES PRECEDENCE OVER THESE GUIDELINES WHERE APPLICABLE. Additional soil tests should be considered after years of extremely high or low
B7: production (+/- 30% of the realistic yield goal). Normal rainfall for this county is: | F7: =Entry!$C$5&" inches" -> 45 inches
B8: Sampling depths will be 0-6 inches unless nutrients are injected, knifed in, or otherwise placed below the surface in which case the sampling depth will be between 3-9 inches. Soil sampling and collection should be in accordance to guidance provided by the Texas Cooperative Extension (TCE).
B9: Pre-plant nitrogen application will not precede the normal planting date of the planned crop by more than 120 days, if the nitrogen is incorporated within 24 hours after application, or 30 days prior to planting if not incorporated within 24 hours. Total nitrogen and phosphorus applied will not exceed the crop requirement for the planned realistic yield goal.
B10: Erosion will be controlled on fields where nutrients are to be applied.
B11: This plan should be revised when:
B12: the crop rotation or crop sequence changes.
B13: a change in farming operation occurs.
B14: new soil test analyses and new recommendations are received.
B15: new or different technology becomes available.
B16: Note: If this plan is part of a contract all changes must be approved prior to application of nutrients.
B17: Calibrate application equipment to apply within +/- 10% of the recommended rate to achieve uniform distribution. When anhydrous ammonia is used, make sure that loose soil and proper moisture conditions are available to insure proper furrow closure. Packer wheels and/or other devices may be necessary.
B18: Handle all nutrient material with caution. Wear appropriate protective clothing. Extra caution should be taken to avoid eye contact or exposure to ammonia fumes. Follow all label directions where available.
B19: Clean residual materials from equipment and dispose properly. When flushing equipment, keep wastewater away from water bodies such as ponds, streams and wells. The residual may be saved and utilized as part of the overall fertilizatiion program.
B21: Nutrient Management - (Optional Field Sketch including sensitive areas)
B52: Plan Prepared by: | E52: Date:
B55: Plan Approved by: | E55: Date:
B58: Producer Signature: | E58: Date:
B60: The producer's signature indicates that this plan has been discussed with him/her.
B61: If this plan is not signed, indicate how the plan was provided to the producer (via phone, mail, or other means).

Sheet TAMU
A1: A & M Test Results (ppm)
A2: pH | B2: Nitrogen | C2: Phosphorus | D2: Potassium
A3: 5.6 | B3: 2 | C3: 5 | D3: 80
C5: =IF(C3="","",IF(C3<='A&M'!E4,"Very Low",IF(AND(C3>='A&M'!F4,C3<='A&M'!G4),"Low",IF(AND(C3>='A&M'!H4,C3<='A&M'!I4),"Medium",IF(AND(C3>='A&M'!J4,C3<='A&M'!K4),"High",IF(AND(C3>='A&M'!L4,C3<='A&M'!M4),"Very High","Excessive")))))) -> Very Low

Sheet EX_Soil_Test
A1: Example soil lab | E1: This sheet is for demonstration purposes only and is not intended to provide the same results as Texas A&M University Soil Lab
A2: Anywhere, USA
A4: Report generated for:
A5: =Entry!C1 -> example | F5: Soil Test Results
A6: =Entry!C2 -> 1 | F6: Mehlich III by ICP used for this analysis. | O6: Coarse
A7: Coarse | D7: Soil Textural Group | O7: Medium
D8: County | O8: Fine
A9: Laboratory Number:
A10: Customer Sample ID:
B11: Crop Grown: | C11: =Entry!B22 -> Corn 200 bu | M11: Generated | P11: =VLOOKUP(C11,all_crops,12) -> g
B12: Crop Grown: | M12: Entered
A14: Analysis | C14: Results | D14: CL* | E14: Units | F14: VLow | G14: Low | H14: Mod | I14: High | J14: VHigh | K14: Excess
A15: pH | C15: =TAMU!A3 -> 5.6 | D15: 5.8 | E15: -- | F15: =O15 -> Moderately Acid | L15: Fertilizer Recommendation | O15: =IF(C15="","",IF(C15<=5,"Very Strongly Acid",IF(AND(C15>=5.1,C15<=5.5),"Strongly Acid",IF(AND(C15>=5.6,C15<=6),"Moderately Acid",IF(AND(C15>=6.1,C15<=6.5),"Slightly Acid",IF(AND(C15>=6.6,C15<=7.3),"Neutral","Alkaline")))))) -> Moderately Acid
A16: Conductivity | C16: 35 | D16: -- | E16: umho/cm
A17: Nitrate-N | C17: =TAMU!B3 -> 2 | D17: -- | E17: ppm | F17: =IF(O17="very low","********",IF(O17="low","****************",IF(O17="medium","*************************",IF(O17="high","***********************************",IF(O17="very high","********************************************",IF(O17="excessive","*******************************************************","")))))) -> ******** | M17: =Entry!E22 -> 245 | N17: lbs N/acre | O17: =IF(C17="","",IF(C17<=10,"Very Low",IF(AND(C17>=11,C17<=15),"Low",IF(AND(C17>=16,C17<=20),"Medium",IF(AND(C17>=21,C17<=30),"High",IF(AND(C17>=31,C17<=40),"Very High","Excessive")))))) -> Very Low
A18: Phosphorus | C18: =TAMU!C3 -> 5 | D18: =CEILING(ROUND(VLOOKUP(C11,all_crops,6)/(VLOOKUP(C11,all_crops,7)),0),5) -> 50 | E18: ppm | F18: =IF(O18="very low","********",IF(O18="low","****************",IF(O18="medium","*************************",IF(O18="high","***********************************",IF(O18="very high","********************************************",IF(O18="excessive","*******************************************************","")))))) -> ************************* | M18: =Entry!F22 -> 115 | N18: lbs P2O5/acre | O18: Medium
A19: Potassium | C19: =TAMU!D3 -> 80 | D19: =CEILING(ROUND(VLOOKUP(C11,all_crops,9)/(VLOOKUP(C11,all_crops,10)),0),5) -> 135 | E19: ppm | F19: *********************************** | M19: =Entry!G22 -> 120 | N19: lbs K2O/acre | O19: =IF(C19="","",IF(C19<=24,"Very Low",IF(AND(C19>=25,C19<=49),"Low",IF(AND(C19>=50,C19<=74),"Medium",IF(AND(C19>=75,C19<=124),"High",IF(AND(C19>=125,C19<=300),"Very High","Excessive")))))) -> High
A20: Calcium | C20: 500 | E20: ppm | F20: ******************************************************* | N20: lbs Ca/acre | O20: =IF(C20="","",IF(C20<=74,"Very Low",IF(AND(C20>=75,C20<=109),"Low",IF(AND(C20>=110,C20<=129),"Medium",IF(AND(C20>=130,C20<=179),"High",IF(AND(C20>=180,C20<=300),"Very High","Excessive")))))) -> Excessive
A21: Magnesium | C21: 19 | E21: ppm | F21: **************** | N21: lbs Mg/acre | O21: =IF(C21="","",IF(C21<=9,"Very Low",IF(AND(C21>=10,C21<=19),"Low",IF(AND(C21>=20,C21<=29),"Medium",IF(AND(C21>=30,C21<=49),"High",IF(AND(C21>=50,C21<=75),"Very High","Excessive")))))) -> Low
A22: Sulfur | C22: 22 | E22: ppm | F22: ******************************************** | N22: lbs S/acre | O22: =IF(C22="","",IF(C22<=1,"Very Low",IF(AND(C22>=2,C22<=4),"Low",IF(AND(C22>=5,C22<=9),"Medium",IF(AND(C22>=10,C22<=12),"High",IF(AND(C22>=13,C22<=25),"Very High","Excessive")))))) -> Very High
A23: Sodium | C23: 160 | E23: ppm | F23: ************************* | O23: =IF(C23="","",IF(C23<=49,"Very Low",IF(AND(C23>=50,C23<=129),"Low",IF(AND(C23>=130,C23<=249),"Medium",IF(AND(C23>=250,C23<=499),"High",IF(AND(C23>=500,C23<=1000),"Very High","Excessive")))))) -> Medium
A24: Iron
A25: Zinc
A26: Manganese
A27: Copper
A28: Boron
A29: Limestone Requirement | L29: =P29 -> 1 | M29: tons 100ECCE/acre | P29: =IF(AND(A7="Coarse",P11="L"),VLOOKUP(C15,ph_table,5,TRUE),IF(AND(A7="medium",P11="L"),VLOOKUP(C15,ph_table,6,TRUE),IF(AND(A7="fine",P11="L"),VLOOKUP(C15,ph_table,7,TRUE),IF(AND(A7="Coarse",P11<>"L"),VLOOKUP(C15,ph_table,2,TRUE),IF(AND(A7="medium",P11<>"L"),VLOOKUP(C15,ph_table,3,TRUE),IF(AND(A7="fine",P11<>"L"),VLOOKUP(C15,ph_table,4,TRUE),"")))))) -> 1
A30: Additional Notes:
P50: no. | Q50: crop | R50: unit | S50: NO3-N ppm | T50: Max N lbs | U50: Recom lbs / unit | V50: P rate | W50: P Factor | X50: Recom lbs / unit | Y50: K rate | Z50: K Factor | AA50: Recom lbs / unit
AF52: pH | AG52: Coarse G | AH52: Medium G | AI52: Fine G | AJ52: Coarse L | AK52: Medium L | AL52: Fine L
P53: 1 | Q53: AFRICAN MILLET | R53: A | S53: 30 | T53: 60 | V53: 55 | W53: 1.1 | Y53: 40 | Z53: 0.32 | AB53: g | AF53: 3 | AG53: 2 | AH53: 2.5 | AI53: 3.5 | AJ53: 2.5 | AK53: 3 | AL53: 4
P54: =P53+1 -> 2 | Q54: ALFALFA (IRRIGATED) 6 TON | R54: A | S54: 10 | T54: 20 | V54: 130 | W54: 2.167 | Y54: 160 | Z54: 1.28 | AB54: l | AF54: =AF53+0.1 -> 3.1 | AG54: 2 | AH54: 2.5 | AI54: 3.5 | AJ54: 2.5 | AK54: 3 | AL54: 4
P55: 3 | Q55: ALFALFA (IRRIGATED) 8-12 TON | R55: A | S55: 10 | T55: 20 | V55: 180 | W55: 3 | Y55: 200 | Z55: 1.6 | AB55: l | AF55: 3.2 | AG55: 2 | AH55: 2.5 | AI55: 3.5 | AJ55: 2.5 | AK55: 3 | AL55: 4
P56: 4 | Q56: ALFALFA (NON-IRRIGATED) 4 Ton | R56: A | S56: 10 | T56: 20 | V56: 80 | W56: 1.333 | Y56: 120 | Z56: 0.96 | AB56: l | AF56: 3.3 | AG56: 2 | AH56: 2.5 | AI56: 3.5 | AJ56: 2.5 | AK56: 3 | AL56: 4
P57: 5 | Q57: Wheat Hay (1 Ton/ac) | R57: A | S57: 22.5 | T57: 45 | V57: 55 | W57: 1.1 | Y57: 120 | Z57: 0.96 | AB57: g | AF57: 3.4 | AG57: 2 | AH57: 2.5 | AI57: 3.5 | AJ57: 2.5 | AK57: 3 | AL57: 4
P58: 6 | Q58: Wheat Hay (1.5 Ton/ac) | R58: A | S58: 32.5 | T58: 65 | V58: 55 | W58: 1.1 | Y58: 120 | Z58: 0.96 | AB58: g | AF58: 3.5 | AG58: 2 | AH58: 2.5 | AI58: 3.5 | AJ58: 2.5 | AK58: 3 | AL58: 4
P59: 7 | Q59: Wheat Hay (2 Ton/ac) | R59: A | S59: 45 | T59: 90 | V59: 65 | W59: 1.3 | Y59: 120 | Z59: 0.96 | AB59: g | AF59: 3.6 | AG59: 2 | AH59: 2.5 | AI59: 3.5 | AJ59: 2.5 | AK59: 3 | AL59: 4
P60: 8 | Q60: Wheat Hay (2.5 Ton/ac) | R60: A | S60: 55 | T60: 110 | V60: 65 | W60: 1.3 | Y60: 150 | Z60: 1 | AB60: g | AF60: 3.7 | AG60: 2 | AH60: 2.5 | AI60: 3.5 | AJ60: 2.5 | AK60: 3 | AL60: 4
P61: 9 | Q61: Wheat Hay (3 Ton/ac) | R61: A | S61: 67.5 | T61: 135 | V61: 80 | W61: 1.6 | Y61: 150 | Z61: 1 | AB61: g | AF61: 3.8 | AG61: 2 | AH61: 2.5 | AI61: 3.5 | AJ61: 2.5 | AK61: 3 | AL61: 4
P62: 10 | Q62: Wheat Hay (3.5 Ton/ac) | R62: A | S62: 77.5 | T62: 155 | V62: 80 | W62: 1.6 | Y62: 175 | Z62: 1.094 | AB62: g | AF62: 3.9 | AG62: 2 | AH62: 2.5 | AI62: 3.5 | AJ62: 2.5 | AK62: 3 | AL62: 4
P63: 11 | Q63: Wheat Hay (4 Ton/ac) | R63: A | S63: 90 | T63: 180 | V63: 80 | W63: 1.6 | Y63: 175 | Z63: 1.094 | AB63: g | AF63: 4 | AG63: 2 | AH63: 2.5 | AI63: 3.5 | AJ63: 2.5 | AK63: 3 | AL63: 4
P64: 12 | Q64: Alfalfa - Irr. Est. | R64: A | S64: 10 | T64: 20 | V64: 130 | W64: 2.167 | Y64: 160 | Z64: 1.28 | AB64: l | AF64: 4.1 | AG64: 2 | AH64: 2.5 | AI64: 3.5 | AJ64: 2.5 | AK64: 3 | AL64: 4
P65: 13 | Q65: Alfalfa - Non-Irr. Est. | R65: A | S65: 10 | T65: 20 | V65: 80 | W65: 1.333 | Y65: 120 | Z65: 0.96 | AB65: l | AF65: 4.2 | AG65: 2 | AH65: 2.5 | AI65: 3.5 | AJ65: 2.5 | AK65: 3 | AL65: 4
P66: 14 | Q66: Aloe Vera | R66: A | S66: 25 | T66: 50 | V66: 3 | W66: 0.06 | Y66: 40 | Z66: 0.32 | AB66: g | AF66: 4.3 | AG66: 2 | AH66: 2.5 | AI66: 3.5 | AJ66: 2.5 | AK66: 3 | AL66: 4
P67: 15 | Q67: Apples | R67: AS | S67: 20 | T67: 1 | V67: 38 | W67: 0.75 | Y67: 150 | Z67: 0.95 | AB67: g | AF67: 4.4 | AG67: 2 | AH67: 2.5 | AI67: 3.5 | AJ67: 2.5 | AK67: 3 | AL67: 4
P68: 16 | Q68: Athletic Fields - Low, Moderate or High Maintenance | R68: A | S68: 30 | T68: 60 | V68: 38 | W68: 0.75 | Y68: 150 | Z68: 0.95 | AB68: g | AF68: 4.5 | AG68: 2 | AH68: 2.5 | AI68: 3.5 | AJ68: 2.5 | AK68: 3 | AL68: 4
P69: 17 | Q69: Azaleas and Camelias | R69: AS | S69: 30 | T69: 1.4 | V69: 3 | W69: 0.06 | Y69: 0 | Z69: 0 | AB69: n/a | AF69: 4.6 | AG69: 2 | AH69: 2.5 | AI69: 3.5 | AJ69: 2.5 | AK69: 3 | AL69: 4
P70: 18 | Q70: Bahiagrass - Est. | R70: A | S70: 20 | T70: 40 | V70: 105 | W70: 2.1 | Y70: 120 | Z70: 0.96 | AB70: g | AF70: 4.7 | AG70: 2 | AH70: 2.5 | AI70: 3.5 | AJ70: 2.5 | AK70: 3 | AL70: 4
P71: 19 | Q71: Bahiagrass Grazing 1AU/1.5ac | R71: A | S71: 110 | T71: 240 | V71: 65 | W71: 1.3 | Y71: 120 | Z71: 0.96 | AB71: g | AF71: 4.8 | AG71: 2 | AH71: 2.5 | AI71: 3.5 | AJ71: 2.5 | AK71: 3 | AL71: 4
P72: 20 | Q72: Bahiagrass Grazing 1AU/2ac | R72: A | S72: 80 | T72: 160 | V72: 40 | W72: 0.8 | Y72: 120 | Z72: 0.96 | AB72: g | AF72: 4.9 | AG72: 2 | AH72: 2.5 | AI72: 3.5 | AJ72: 2.5 | AK72: 3 | AL72: 4
P73: 21 | Q73: Bahiagrass Grazing 1AU/3ac | R73: A | S73: 75 | T73: 150 | V73: 40 | W73: 0.8 | Y73: 100 | Z73: 0.8 | AB73: g | AF73: 5 | AG73: 1.5 | AH73: 2 | AI73: 2.5 | AJ73: 2 | AK73: 2 | AL73: 3
P74: 22 | Q74: Bahiagrass Grazing 1AU/4ac | R74: A | S74: 70 | T74: 140 | V74: 40 | W74: 0.8 | Y74: 100 | Z74: 0.8 | AB74: g | AF74: 5.1 | AG74: 1.5 | AH74: 2 | AI74: 2.5 | AJ74: 2 | AK74: 2 | AL74: 3
P75: 23 | Q75: Bahiagrass Grazing 1AU/5ac | R75: A | S75: 50 | T75: 100 | V75: 30 | W75: 0.6 | Y75: 100 | Z75: 0.8 | AB75: g | AF75: 5.2 | AG75: 1.5 | AH75: 2 | AI75: 2.5 | AJ75: 2 | AK75: 2 | AL75: 3
P76: 24 | Q76: Bahiagrass Grazing 1AU/6 + ac | R76: A | S76: 30 | T76: 60 | V76: 30 | W76: 0.6 | Y76: 80 | Z76: 0.64 | AB76: g | AF76: 5.3 | AG76: 1.5 | AH76: 2 | AI76: 2.5 | AJ76: 2 | AK76: 2 | AL76: 3
P77: 25 | Q77: Bahiagrass Hay (1 cutting + grazing) | R77: A | S77: 65 | T77: 130 | V77: 65 | W77: 1.3 | Y77: 120 | Z77: 0.96 | AB77: g | AF77: 5.4 | AG77: 1.5 | AH77: 2 | AI77: 2.5 | AJ77: 2 | AK77: 2 | AL77: 3
P78: 26 | Q78: Bahiagrass Hay 10000 lb | R78: A | S78: 210 | T78: 420 | V78: 110 | W78: 2.2 | Y78: 250 | Z78: 1.667 | AB78: g | AF78: 5.5 | AG78: 1 | AH78: 1 | AI78: 1.5 | AJ78: 1 | AK78: 1.5 | AL78: 2
P79: 27 | Q79: Bahiagrass Hay 6000 lb | R79: A | S79: 70 | T79: 140 | V79: 40 | W79: 0.8 | Y79: 90 | Z79: 0.72 | AB79: g | AF79: 5.6 | AG79: 1 | AH79: 1 | AI79: 1.5 | AJ79: 1 | AK79: 1.5 | AL79: 2
P80: 28 | Q80: Bahiagrass Hay 8000 lb | R80: A | S80: 105 | T80: 210 | V80: 80 | W80: 1.6 | Y80: 180 | Z80: 1.44 | AB80: g | AF80: 5.7 | AG80: 1 | AH80: 1 | AI80: 1.5 | AJ80: 1 | AK80: 1.5 | AL80: 2
P81: 29 | Q81: Barley 30 - 40 bu | R81: A | S81: 25 | T81: 50 | V81: 56 | W81: 1.13 | Y81: 40 | Z81: 0.32 | AB81: g | AF81: 5.8 | AG81: 1 | AH81: 1 | AI81: 1.5 | AJ81: 1 | AK81: 1.5 | AL81: 2
P82: 30 | Q82: Barley 70 - 90 bu | R82: A | S82: 50 | T82: 100 | V82: 81 | W82: 1.63 | Y82: 90 | Z82: 0.71 | AB82: g | AF82: 5.9 | AG82: 1 | AH82: 1 | AI82: 1.5 | AJ82: 1 | AK82: 1.5 | AL82: 2
P83: 31 | Q83: Barley 70 - 90 bu + Light grazing | R83: A | S83: 50 | T83: 100 | V83: 80 | W83: 1.6 | Y83: 90 | Z83: 0.72 | AB83: g | AF83: 6 | AG83: 1 | AH83: 1 | AI83: 1.5 | AJ83: 1 | AK83: 1 | AL83: 1.5
P84: 32 | Q84: Barley heavy grazing | R84: A | S84: 80 | T84: 160 | V84: 105 | W84: 2.1 | Y84: 120 | Z84: 0.96 | AB84: g | AF84: 6.1 | AG84: 0 | AH84: 0 | AI84: 0 | AJ84: 1 | AK84: 1 | AL84: 1.5
P85: 33 | Q85: Barley heavy grazing, sandy soils | R85: A | S85: 110 | T85: 220 | V85: 105 | W85: 2.1 | Y85: 120 | Z85: 0.96 | AB85: g | AF85: 6.2 | AG85: 0 | AH85: 0 | AI85: 0 | AJ85: 1 | AK85: 1 | AL85: 1.5
P86: 34 | Q86: Beans, Green | R86: A | S86: 25 | T86: 50 | V86: 106 | W86: 2.13 | Y86: 120 | Z86: 0.95 | AB86: l | AF86: 6.3 | AG86: 0 | AH86: 0 | AI86: 0 | AJ86: 1 | AK86: 1 | AL86: 1.5
P87: 35 | Q87: Beans, Lima | R87: A | S87: 25 | T87: 50 | V87: 106 | W87: 2.13 | Y87: 120 | Z87: 0.95 | AB87: l | AF87: 6.4 | AG87: 0 | AH87: 0 | AI87: 0 | AJ87: 1 | AK87: 1 | AL87: 1.5
P88: 36 | Q88: Beans, Pinto | R88: A | S88: 25 | T88: 50 | V88: 106 | W88: 2.13 | Y88: 120 | Z88: 0.95 | AB88: l | AF88: 6.5 | AG88: 0 | AH88: 0 | AI88: 0 | AJ88: 1 | AK88: 1 | AL88: 1.5
P89: 37 | Q89: Beets | R89: A | S89: 35 | T89: 70 | V89: 106 | W89: 2.13 | Y89: 90 | Z89: 0.71 | AB89: g | AF89: 6.6 | AG89: 0 | AH89: 0 | AI89: 0 | AJ89: 0 | AK89: 0 | AL89: 0
P90: 38 | Q90: Bermudagrass, Common - Est. | R90: A | S90: 20 | T90: 40 | V90: 105 | W90: 2.1 | Y90: 100 | Z90: 0.8 | AB90: g | AF90: 6.7 | AG90: 0 | AH90: 0 | AI90: 0 | AJ90: 0 | AK90: 0 | AL90: 0
P91: 39 | Q91: Bermudagrass, Common, Grazing 1 AU/1.5 ac | R91: A | S91: 120 | T91: 240 | V91: 65 | W91: 1.3 | Y91: 80 | Z91: 0.64 | AB91: g | AF91: 6.8 | AG91: 0 | AH91: 0 | AI91: 0 | AJ91: 0 | AK91: 0 | AL91: 0
P92: 40 | Q92: Bermudagrass, Common, Grazing 1 AU/2 ac | R92: A | S92: 90 | T92: 180 | V92: 40 | W92: 0.8 | Y92: 50 | Z92: 0.333 | AB92: g | AF92: 6.9 | AG92: 0 | AH92: 0 | AI92: 0 | AJ92: 0 | AK92: 0 | AL92: 0
P93: 41 | Q93: Bermudagrass, Common, Grazing 1AU/3 ac | R93: A | S93: 90 | T93: 180 | V93: 40 | W93: 0.8 | Y93: 50 | Z93: 0.333 | AB93: g | AF93: 7 | AG93: 0 | AH93: 0 | AI93: 0 | AJ93: 0 | AK93: 0 | AL93: 0
P94: 42 | Q94: Bermudagrass, Common, Grazing 1AU/4ac | R94: A | S94: 80 | T94: 160 | V94: 40 | W94: 0.8 | Y94: 50 | Z94: 0.333 | AB94: g | AF94: 7.1 | AG94: 0 | AH94: 0 | AI94: 0 | AJ94: 0 | AK94: 0 | AL94: 0
P95: 43 | Q95: Bermudagrass, Common, Grazing 1AU/5ac | R95: A | S95: 70 | T95: 140 | V95: 30 | W95: 0.6 | Y95: 50 | Z95: 0.333 | AB95: g | AF95: 7.2 | AG95: 0 | AH95: 0 | AI95: 0 | AJ95: 0 | AK95: 0 | AL95: 0
P96: 44 | Q96: Bermudagrass, Common, Grazing 1AU/6ac | R96: A | S96: 50 | T96: 100 | V96: 30 | W96: 0.6 | Y96: 50 | Z96: 0.333 | AB96: g | AF96: 7.3 | AG96: 0 | AH96: 0 | AI96: 0 | AJ96: 0 | AK96: 0 | AL96: 0
P97: 45 | Q97: Bermudagrass, Common, Grazing 1AU/9+ac | R97: A | S97: 40 | T97: 60 | V97: 30 | W97: 0.6 | Y97: 50 | Z97: 0.333 | AB97: g | AF97: 7.4 | AG97: 0 | AH97: 0 | AI97: 0 | AJ97: 0 | AK97: 0 | AL97: 0
P98: 46 | Q98: Bermudagrass, Common, Hay 5000 lb | R98: A | S98: 70 | T98: 140 | V98: 40 | W98: 0.8 | Y98: 100 | Z98: 0.8 | AB98: g | AF98: 7.5 | AG98: 0 | AH98: 0 | AI98: 0 | AJ98: 0 | AK98: 0 | AL98: 0
P99: 47 | Q99: Bermudagrass, Common, Hay 6000 lb | R99: A | S99: 105 | T99: 210 | V99: 65 | W99: 1.3 | Y99: 170 | Z99: 1.067 | AB99: g | AF99: 7.6 | AG99: 0 | AH99: 0 | AI99: 0 | AJ99: 0 | AK99: 0 | AL99: 0
P100: 48 | Q100: Bermudagrass, Common, Hay 8000 lb | R100: A | S100: 140 | T100: 280 | V100: 80 | W100: 1.6 | Y100: 240 | Z100: 1.067 | AB100: g | AF100: 7.7 | AG100: 0 | AH100: 0 | AI100: 0 | AJ100: 0 | AK100: 0 | AL100: 0
P101: 49 | Q101: Bermudagrass, Common, Hay 9500 lb | R101: A | S101: 210 | T101: 420 | V101: 80 | W101: 1.6 | Y101: 310 | Z101: 1.409 | AB101: g | AF101: 7.8 | AG101: 0 | AH101: 0 | AI101: 0 | AJ101: 0 | AK101: 0 | AL101: 0
P102: 50 | Q102: Bermudagrass, Common, Hay (1 cut + grazing) | R102: A | S102: 65 | T102: 130 | V102: 65 | W102: 1.3 | Y102: 90 | Z102: 0.72 | AB102: g | AF102: 7.9 | AG102: 0 | AH102: 0 | AI102: 0 | AJ102: 0 | AK102: 0 | AL102: 0
P103: 51 | Q103: Bermudagrass, Hyb, Grazing 1 AU/.5ac | R103: A | S103: 150 | T103: 300 | V103: 65 | W103: 1.6 | Y103: 120 | Z103: 0.96 | AB103: g | AF103: 8 | AG103: 0 | AH103: 0 | AI103: 0 | AJ103: 0 | AK103: 0 | AL103: 0
P104: 52 | Q104: Bermudagrass, Hyb, Grazing 1 AU/1ac | R104: A | S104: 135 | T104: 270 | V104: 65 | W104: 1.6 | Y104: 120 | Z104: 0.96 | AB104: g | AF104: 8.1 | AG104: 0 | AH104: 0 | AI104: 0 | AJ104: 0 | AK104: 0 | AL104: 0
P105: 53 | Q105: Bermudagrass, Hyb, Grazing 1AU/2ac | R105: A | S105: 100 | T105: 200 | V105: 65 | W105: 1.6 | Y105: 120 | Z105: 0.96 | AB105: g | AF105: 8.2 | AG105: 0 | AH105: 0 | AI105: 0 | AJ105: 0 | AK105: 0 | AL105: 0
P106: 54 | Q106: Bermudagrass, Hyb, Grazing 1AU/3ac | R106: A | S106: 80 | T106: 160 | V106: 65 | W106: 1.3 | Y106: 120 | Z106: 0.96 | AB106: g | AF106: 8.3 | AG106: 0 | AH106: 0 | AI106: 0 | AJ106: 0 | AK106: 0 | AL106: 0
P107: 55 | Q107: Bermudagrass, Hyb, Grazing 1AU/4ac | R107: A | S107: 60 | T107: 120 | V107: 65 | W107: 1.3 | Y107: 100 | Z107: 0.8 | AB107: g | AF107: 8.4 | AG107: 0 | AH107: 0 | AI107: 0 | AJ107: 0 | AK107: 0 | AL107: 0
P108: 56 | Q108: Bermudagrass, Hyb, Grazing 1AU/5ac | R108: A | S108: 45 | T108: 90 | V108: 50 | W108: 1 | Y108: 100 | Z108: 0.8 | AB108: g | AF108: 8.5 | AG108: 0 | AH108: 0 | AI108: 0 | AJ108: 0 | AK108: 0 | AL108: 0
P109: 57 | Q109: Bermudagrass, Hyb, Grazing 1AU/6 + ac | R109: A | S109: 30 | T109: 60 | V109: 50 | W109: 1 | Y109: 80 | Z109: 0.64 | AB109: g | AF109: 8.6 | AG109: 0 | AH109: 0 | AI109: 0 | AJ109: 0 | AK109: 0 | AL109: 0
P110: 58 | Q110: Bermudagrass, Hyb, Hay (1 cut + grazing) | R110: A | S110: 85 | T110: 170 | V110: 65 | W110: 1.3 | Y110: 150 | Z110: 1 | AB110: g | AF110: 8.7 | AG110: 0 | AH110: 0 | AI110: 0 | AJ110: 0 | AK110: 0 | AL110: 0
P111: 59 | Q111: Bermudagrass, Hyb, Hay 10000 lb | R111: A | S111: 125 | T111: 250 | V111: 115 | W111: 2.3 | Y111: 225 | Z111: 1.5 | AB111: g | AF111: 8.8 | AG111: 0 | AH111: 0 | AI111: 0 | AJ111: 0 | AK111: 0 | AL111: 0
P112: 60 | Q112: Bermudagrass, Hyb, Hay 12000 lb | R112: A | S112: 150 | T112: 300 | V112: 140 | W112: 2.8 | Y112: 250 | Z112: 1.667 | AB112: g | AF112: 8.9 | AG112: 0 | AH112: 0 | AI112: 0 | AJ112: 0 | AK112: 0 | AL112: 0
P113: 61 | Q113: Bermudagrass, Hyb, Hay 15000 lb | R113: A | S113: 187.5 | T113: 375 | V113: 150 | W113: 3 | Y113: 275 | Z113: 1.833 | AB113: g | AF113: 9 | AG113: 0 | AH113: 0 | AI113: 0 | AJ113: 0 | AK113: 0 | AL113: 0
P114: 62 | Q114: Bermudagrass, Hyb, Hay 16000 lb | R114: A | S114: 200 | T114: 400 | V114: 165 | W114: 3.3 | Y114: 300 | Z114: 1.667 | AB114: g | AF114: 9.1 | AG114: 0 | AH114: 0 | AI114: 0 | AJ114: 0 | AK114: 0 | AL114: 0
P115: 63 | Q115: Bermudagrass, Hyb, Hay 18000 lb | R115: A | S115: 225 | T115: 450 | V115: 175 | W115: 3.5 | Y115: 300 | Z115: 2 | AB115: g | AF115: 9.2 | AG115: 0 | AH115: 0 | AI115: 0 | AJ115: 0 | AK115: 0 | AL115: 0
P116: 64 | Q116: Bermudagrass, Hyb, Hay 20000 lb | R116: A | S116: 250 | T116: 500 | V116: 200 | W116: 4 | Y116: 350 | Z116: 1.944 | AB116: g | AF116: 9.3 | AG116: 0 | AH116: 0 | AI116: 0 | AJ116: 0 | AK116: 0 | AL116: 0
P117: 65 | Q117: Bermudagrass, Hyb, Hay 3000 lb | R117: A | S117: 37.5 | T117: 75 | V117: 50 | W117: 1 | Y117: 125 | Z117: 1 | AB117: g | AF117: 9.4 | AG117: 0 | AH117: 0 | AI117: 0 | AJ117: 0 | AK117: 0 | AL117: 0
P118: =P117+1 -> 66 | Q118: Bermudagrass, Hyb, Hay 4000 lb | R118: A | S118: 50 | T118: 100 | V118: 65 | W118: 1.3 | Y118: 150 | Z118: 1.2 | AB118: g | AF118: =AF117+0.1 -> 9.5 | AG118: 0 | AH118: 0 | AI118: 0 | AJ118: 0 | AK118: 0 | AL118: 0
P119: 67 | Q119: Bermudagrass, Hyb, Hay 5000 lb | R119: A | S119: 62.5 | T119: 125 | V119: 80 | W119: 1.6 | Y119: 175 | Z119: 1.4 | AB119: g | AF119: 9.6 | AG119: 0 | AH119: 0 | AI119: 0 | AJ119: 0 | AK119: 0 | AL119: 0
P120: 68 | Q120: Bermudagrass, Hyb, Hay 6000 lb | R120: A | S120: 75 | T120: 150 | V120: 100 | W120: 2 | Y120: 200 | Z120: 1.333 | AB120: g | AF120: 9.7 | AG120: 0 | AH120: 0 | AI120: 0 | AJ120: 0 | AK120: 0 | AL120: 0
P121: 69 | Q121: Bermudagrass, Hyb, Hay 8000 lb | R121: A | S121: 100 | T121: 200 | V121: 100 | W121: 2 | Y121: 200 | Z121: 1.33 | AB121: g | AF121: 9.8 | AG121: 0 | AH121: 0 | AI121: 0 | AJ121: 0 | AK121: 0 | AL121: 0
P122: 70 | Q122: Bermudagrass, Hyb, Hay 9000 lb | R122: A | S122: 112.5 | T122: 225 | V122: 100 | W122: 2 | Y122: 200 | Z122: 1.33 | AB122: g | AF122: 9.9 | AG122: 0 | AH122: 0 | AI122: 0 | AJ122: 0 | AK122: 0 | AL122: 0
P123: 71 | Q123: Bermudagrass, Hyb, Irr. Hay 24000 lb | R123: A | S123: 300 | T123: 600 | V123: 240 | W123: 4.8 | Y123: 400 | Z123: 2.222 | AB123: g | AF123: 10 | AG123: 0 | AH123: 0 | AI123: 0 | AJ123: 0 | AK123: 0 | AL123: 0
P124: 72 | Q124: Bermudagrass, Hyb, Irr. Hay 28000 lb | R124: A | S124: 350 | T124: 700 | V124: 275 | W124: 5.5 | Y124: 450 | Z124: 2.5 | AB124: g | AF124: 10.1 | AG124: 0 | AH124: 0 | AI124: 0 | AJ124: 0 | AK124: 0 | AL124: 0
P125: 73 | Q125: Bermudagrass, Hyb, Irr. Hay 30000 lb | R125: A | S125: 375 | T125: 750 | V125: 275 | W125: 5.5 | Y125: 425 | Z125: 2.361 | AB125: g | AF125: 10.2 | AG125: 0 | AH125: 0 | AI125: 0 | AJ125: 0 | AK125: 0 | AL125: 0
P126: 74 | Q126: Bermudagrass, Hyb, Irr. Hay 35000 lb | R126: A | S126: 437.5 | T126: 875 | V126: 300 | W126: 6 | Y126: 475 | Z126: 2.639 | AB126: g | AF126: 10.3 | AG126: 0 | AH126: 0 | AI126: 0 | AJ126: 0 | AK126: 0 | AL126: 0
P127: 75 | Q127: Bermudagrass, Hyb, Irr. Hay 36000 lb | R127: A | S127: 450 | T127: 900 | V127: 300 | W127: 6 | Y127: 450 | Z127: 2.5 | AB127: g | AF127: 10.4 | AG127: 0 | AH127: 0 | AI127: 0 | AJ127: 0 | AK127: 0 | AL127: 0
P128: 76 | Q128: Bermudagrass, Hyb, Irr. Hay 42000 lb | R128: A | S128: 525 | T128: 1050 | V128: 325 | W128: 6.5 | Y128: 500 | Z128: 2.778 | AB128: g | AF128: 10.5 | AG128: 0 | AH128: 0 | AI128: 0 | AJ128: 0 | AK128: 0 | AL128: 0
P129: 77 | Q129: Bermudagrass, Improved - Irr. Est. | R129: A | S129: 20 | T129: 40 | V129: 105 | W129: 2.1 | Y129: 100 | Z129: 0.8 | AB129: g | AF129: 10.6 | AG129: 0 | AH129: 0 | AI129: 0 | AJ129: 0 | AK129: 0 | AL129: 0
P130: 78 | Q130: Bermudagrass, Improved - non-irr. Est | R130: A | S130: 20 | T130: 40 | V130: 105 | W130: 2.1 | Y130: 100 | Z130: 0.8 | AB130: g | AF130: 10.7 | AG130: 0 | AH130: 0 | AI130: 0 | AJ130: 0 | AK130: 0 | AL130: 0
P131: 79 | Q131: Bermudagrass, NK-37 or Midland - Est | R131: A | S131: 20 | T131: 40 | V131: 55 | W131: 1.1 | Y131: 40 | Z131: 0.889 | AB131: g | AF131: 10.8 | AG131: 0 | AH131: 0 | AI131: 0 | AJ131: 0 | AK131: 0 | AL131: 0
P132: 80 | Q132: Bermudagrass, NK-37 or Midland 12000 lb | R132: A | S132: 210 | T132: 420 | V132: 110 | W132: 2.2 | Y132: 310 | Z132: 1.409 | AB132: g | AF132: 10.9 | AG132: 0 | AH132: 0 | AI132: 0 | AJ132: 0 | AK132: 0 | AL132: 0
P133: 81 | Q133: Bermudagrass, NK-37 or Midland 7000 lb | R133: A | S133: 100 | T133: 200 | V133: 105 | W133: 2.1 | Y133: 200 | Z133: 1.6 | AB133: g | AF133: 11 | AG133: 0 | AH133: 0 | AI133: 0 | AJ133: 0 | AK133: 0 | AL133: 0
P134: 82 | Q134: Bermudagrass, NK-37 or Midland Grazing | R134: A | S134: 80 | T134: 160 | V134: 80 | W134: 1.6 | Y134: 120 | Z134: 0.96 | AB134: g
P135: 83 | Q135: Blue Panic - Est. | R135: A | S135: 20 | T135: 40 | V135: 55 | W135: 1.1 | Y135: 40 | Z135: 0.32 | AB135: g
P136: 84 | Q136: Blue Panic, grazing | R136: A | S136: 65 | T136: 130 | V136: 55 | W136: 1.1 | Y136: 40 | Z136: 0.32 | AB136: g
P137: 85 | Q137: Blueberry | R137: A | S137: 30 | T137: 60 | V137: 31 | W137: 0.63 | Y137: 0 | Z137: 0 | AB137: n/a
P138: 86 | Q138: Bluestems - Est | R138: A | S138: 20 | T138: 40 | V138: 55 | W138: 1.1 | Y138: 40 | Z138: 0.32 | AB138: g
P139: 87 | Q139: Bluestems, Native or KR Grazing or Hay | R139: A | S139: 65 | T139: 130 | V139: 55 | W139: 1.1 | Y139: 120 | Z139: 0.96 | AB139: g
P140: 88 | Q140: Bluestems, OW Improved, Grazing or Hay | R140: A | S140: 120 | T140: 240 | V140: 65 | W140: 1.3 | Y140: 120 | Z140: 0.923 | AB140: g
P141: 89 | Q141: Broccoli - Field Production | R141: A | S141: 40 | T141: 80 | V141: 106 | W141: 1.77 | Y141: 80 | Z141: 0.64 | AB141: g
P142: 90 | Q142: Buffelgrass - Est | R142: A | S142: 20 | T142: 40 | V142: 105 | W142: 2.1 | Y142: 120 | Z142: 0.96 | AB142: g
P143: 91 | Q143: Buffelgrass (Heavy Grazing or Hay + Graze) | R143: A | S143: 105 | T143: 210 | V143: 65 | W143: 1.3 | Y143: 120 | Z143: 0.96 | AB143: g
P144: 92 | Q144: Buffelgrass (Moderate Grazing) | R144: A | S144: 75 | T144: 150 | V144: 65 | W144: 1.3 | Y144: 120 | Z144: 0.96 | AB144: g
P145: 93 | Q145: Buffelgrass Hay 4000 lb | R145: A | S145: 40 | T145: 80 | V145: 65 | W145: 1.3 | Y145: 80 | Z145: 0.64 | AB145: g
P146: 94 | Q146: Buffelgrass Hay 6000 lb | R146: A | S146: 80 | T146: 160 | V146: 80 | W146: 1.3 | Y146: 100 | Z146: 0.8 | AB146: g
P147: 95 | Q147: Buffelgrass Hay 8000 lb | R147: A | S147: 120 | T147: 240 | V147: 105 | W147: 2.1 | Y147: 120 | Z147: 0.96 | AB147: g
P148: 96 | Q148: Cabbage - Field Production | R148: A | S148: 50 | T148: 100 | V148: 131 | W148: 2.19 | Y148: 160 | Z148: 1.27 | AB148: g
P149: 97 | Q149: Cabbage-Chinese | R149: A | S149: 50 | T149: 100 | V149: 131 | W149: 2.19 | Y149: 160 | Z149: 1.27 | AB149: g
P150: 98 | Q150: Cane | R150: A | S150: 30 | T150: 60 | V150: 55 | W150: 1.1 | Y150: 40 | Z150: 0.308 | AB150: g
P151: 99 | Q151: Cantaloupe - Field Production | R151: A | S151: 20 | T151: 40 | V151: 106 | W151: 1.77 | Y151: 80 | Z151: 0.64 | AB151: g
P152: 100 | Q152: Carrots - Field Production | R152: A | S152: 40 | T152: 80 | V152: 106 | W152: 2.13 | Y152: 120 | Z152: 0.95 | AB152: g
P153: 101 | Q153: Cauliflower - Field Production | R153: A | S153: 40 | T153: 80 | V153: 106 | W153: 2.13 | Y153: 120 | Z153: 0.95 | AB153: g
P154: 102 | Q154: Citrus | R154: A | S154: 50 | T154: 100 | V154: 81 | W154: 1.63 | Y154: 130 | Z154: 0.95 | AB154: g
P155: 103 | Q155: Clover, Vetch (Prepared Seedbed) | R155: A | S155: 5 | T155: 10 | V155: 105 | W155: 2.1 | Y155: 120 | Z155: 0.686 | AB155: l
P156: 104 | Q156: Clover, Vetch (Sod Seeded) | R156: A | S156: 30 | T156: 60 | V156: 105 | W156: 2.1 | Y156: 120 | Z156: 0.686 | AB156: l
P157: 105 | Q157: Clover, Vetch + Ryegrass or Sm.Grain | R157: A | S157: 55 | T157: 110 | V157: 105 | W157: 2.1 | Y157: 120 | Z157: 0.686 | AB157: l
P158: 106 | Q158: Collards | R158: A | S158: 40 | T158: 80 | V158: 106 | W158: 2.13 | Y158: 120 | Z158: 0.95 | AB158: g
P159: 107 | Q159: Corn 111 - 130 bu | R159: A | S159: 72 | T159: 144 | V159: 106 | W159: 2.13 | Y159: 130 | Z159: 1.03 | AB159: g
P160: 108 | Q160: Corn 131 - 150 bu | R160: A | S160: 82 | T160: 164 | V160: 106 | W160: 2.13 | Y160: 130 | Z160: 1.03 | AB160: g
P161: 109 | Q161: Corn 151 - 170 bu | R161: A | S161: 90 | T161: 180 | V161: 131 | W161: 2.63 | Y161: 140 | Z161: 1.15 | AB161: g
P162: 110 | Q162: Corn 171 - 190 bu | R162: A | S162: 105 | T162: 210 | V162: 131 | W162: 2.63 | Y162: 140 | Z162: 1.1 | AB162: g
P163: 111 | Q163: Corn 191 - 210 bu | R163: A | S163: 125 | T163: 250 | V163: 131 | W163: 2.63 | Y163: 140 | Z163: 1.05 | AB163: g
P164: 112 | Q164: Corn 211 - 230 bu | R164: A | S164: 140 | T164: 280 | V164: 131 | W164: 2.63 | Y164: 150 | Z164: 1.1 | AB164: g
P165: 113 | Q165: Corn 231 - 250 bu | R165: A | S165: 150 | T165: 300 | V165: 131 | W165: 2.63 | Y165: 150 | Z165: 1.05 | AB165: g
P166: 114 | Q166: Corn 50 - 70 bu | R166: A | S166: 35 | T166: 70 | V166: 81 | W166: 1.63 | Y166: 80 | Z166: 0.64 | AB166: g
P167: 115 | Q167: Corn 71 - 90 bu | R167: A | S167: 45 | T167: 90 | V167: 81 | W167: 1.63 | Y167: 80 | Z167: 0.64 | AB167: g
P168: 116 | Q168: Corn 91 - 110 bu | R168: A | S168: 60 | T168: 120 | V168: 106 | W168: 2.13 | Y168: 110 | Z168: 0.75 | AB168: g
P169: 117 | Q169: Cotton 0.5 bale | R169: A | S169: 12.5 | T169: 25 | V169: 56 | W169: 1.13 | Y169: 30 | Z169: 0.24 | AB169: g
P170: 118 | Q170: Cotton 0.75 bale | R170: A | S170: 18.75 | T170: 37.5 | V170: 56 | W170: 1.13 | Y170: 30 | Z170: 0.24 | AB170: g
P171: 119 | Q171: Cotton 1 bale | R171: A | S171: 25 | T171: 50 | V171: 56 | W171: 1.13 | Y171: 30 | Z171: 0.24 | AB171: g
P172: 120 | Q172: Cotton 1.25 bale | R172: A | S172: 31.25 | T172: 62.5 | V172: 81 | W172: 1.63 | Y172: 50 | Z172: 0.4 | AB172: g
P173: 121 | Q173: Cotton 1.5 bale | R173: A | S173: 37.5 | T173: 75 | V173: 81 | W173: 1.63 | Y173: 50 | Z173: 0.4 | AB173: g
P174: 122 | Q174: Cotton 1.75 bale | R174: A | S174: 43.75 | T174: 87.5 | V174: 106 | W174: 2.13 | Y174: 120 | Z174: 0.95 | AB174: g
P175: 123 | Q175: Cotton 2 bale | R175: A | S175: 50 | T175: 100 | V175: 106 | W175: 2.13 | Y175: 120 | Z175: 0.95 | AB175: g
P176: 124 | Q176: Cotton 2.25 bale | R176: A | S176: 56.25 | T176: 112.5 | V176: 106 | W176: 2.13 | Y176: 120 | Z176: 0.95 | AB176: g
P177: 125 | Q177: Cotton 2.5 bale | R177: A | S177: 62.5 | T177: 125 | V177: 106 | W177: 2.13 | Y177: 120 | Z177: 0.95 | AB177: g
P178: 126 | Q178: Cotton 2.75 bale | R178: A | S178: 68.75 | T178: 137.5 | V178: 106 | W178: 2.13 | Y178: 120 | Z178: 0.95 | AB178: g
P179: 127 | Q179: Cotton 3 bale | R179: A | S179: 75 | T179: 150 | V179: 106 | W179: 2.13 | Y179: 120 | Z179: 0.95 | AB179: g
P180: 128 | Q180: Cucumbers - Field Production | R180: A | S180: 40 | T180: 80 | V180: 106 | W180: 1.77 | Y180: 80 | Z180: 0.64 | AB180: g
P181: 129 | Q181: Dallis Grass (1 cutting plus grazing) | R181: A | S181: 115 | T181: 230 | V181: 65 | W181: 1.3 | Y181: 120 | Z181: 0.96 | AB181: g
P182: =P181+1 -> 130 | Q182: Dallis Grass, Grazing, 1AU/1 - 1.5 ac | R182: A | S182: 115 | T182: 230 | V182: 65 | W182: 1.3 | Y182: 120 | Z182: 0.96 | AB182: g
P183: 131 | Q183: Dallis Grass, Grazing, 1AU/1.5 - 2 ac | R183: A | S183: 95 | T183: 190 | V183: 65 | W183: 1.3 | Y183: 120 | Z183: 0.96 | AB183: g
P184: 132 | Q184: Dallisgrass - Est | R184: A | S184: 20 | T184: 40 | V184: 105 | W184: 2.1 | Y184: 120 | Z184: 0.96 | AB184: g
P185: 133 | Q185: Desoto Grass | R185: A | S185: 20 | T185: 40 | V185: 55 | W185: 1.1 | Y185: 120 | Z185: 0.96 | AB185: g
P186: 134 | Q186: Eggplant - Field Production | R186: A | S186: 60 | T186: 120 | V186: 106 | W186: 1.77 | Y186: 120 | Z186: 0.95 | AB186: g
P187: 135 | Q187: Establishment | AB187: g
P188: 136 | Q188: Fescue Est. | R188: A | S188: 20 | T188: 40 | V188: 80 | W188: 1.6 | Y188: 60 | Z188: 0.48 | AB188: g
P189: 137 | Q189: Fescue, 3-4 AU/ac or Hay | R189: A | S189: 60 | T189: 120 | V189: 80 | W189: 1.6 | Y189: 120 | Z189: 0.96 | AB189: g
P190: 138 | Q190: Flax | R190: A | S190: 20 | T190: 40 | V190: 56 | W190: 1.13 | Y190: 40 | Z190: 0.32 | AB190: g
P191: 139 | Q191: Flowers | R191: S | S191: 30 | T191: 1.5 | V191: 3 | W191: 0.06 | Y191: 0 | Z191: 0 | AB191: g
P192: 140 | Q192: Forage Sorghum | R192: A | S192: 20 | T192: 40 | V192: 55 | W192: 1.1 | Y192: 120 | Z192: 0.96 | AB192: g
P193: 141 | Q193: Fruit trees | R193: S | S193: 30 | T193: 1.38 | V193: 3 | W193: 0.06 | Y193: 0 | Z193: 0 | AB193: g
P194: 142 | Q194: Garden | R194: AS | S194: 30 | T194: 1.38 | V194: 4 | W194: 0.08 | Y194: 0 | Z194: 0 | AB194: g
P195: 143 | Q195: Garlic | R195: A | S195: 50 | T195: 100 | V195: 131 | W195: 2.63 | Y195: 100 | Z195: 0.79 | AB195: g
P196: 144 | Q196: Golf Greens - Native and Pushup | R196: S | S196: 30 | T196: 1.5 | V196: 100 | W196: 2 | Y196: 0 | Z196: 0 | AB196: g
P197: 145 | Q197: Golf Greens - Sand Based | R197: S | S197: 30 | T197: 1.5 | V197: 100 | W197: 2 | Y197: 0 | Z197: 0 | AB197: g
P198: 146 | Q198: Grain Sorghum 1000 lb | R198: A | S198: 10 | T198: 20 | V198: 31 | W198: 0.6 | Y198: 10 | Z198: 0.16 | AB198: g
P199: 147 | Q199: Grain Sorghum 1500 lb | R199: A | S199: 15 | T199: 30 | V199: 31 | W199: 0.6 | Y199: 15 | Z199: 0.16 | AB199: g
P200: 148 | Q200: Grain Sorghum 2000 lb | R200: A | S200: 20 | T200: 40 | V200: 31 | W200: 0.6 | Y200: 20 | Z200: 0.16 | AB200: g
P201: 149 | Q201: Grain Sorghum 2500 lb | R201: A | S201: 25 | T201: 50 | V201: 56 | W201: 1.13 | Y201: 60 | Z201: 0.64 | AB201: g
P202: 150 | Q202: Grain Sorghum 3000 lb | R202: A | S202: 30 | T202: 60 | V202: 56 | W202: 1.13 | Y202: 60 | Z202: 0.64 | AB202: g
P203: 151 | Q203: Grain Sorghum 3500 lb | R203: A | S203: 35 | T203: 70 | V203: 56 | W203: 1.13 | Y203: 70 | Z203: 0.64 | AB203: g
P204: 152 | Q204: Grain Sorghum 4000 lb | R204: A | S204: 40 | T204: 80 | V204: 56 | W204: 1.13 | Y204: 80 | Z204: 0.64 | AB204: g
P205: 153 | Q205: Grain Sorghum 4500 lb | R205: A | S205: 45 | T205: 90 | V205: 81 | W205: 1.63 | Y205: 100 | Z205: 0.79 | AB205: g
P206: 154 | Q206: Grain Sorghum 5000 lb | R206: A | S206: 50 | T206: 100 | V206: 81 | W206: 1.63 | Y206: 100 | Z206: 0.79 | AB206: g
P207: 155 | Q207: Grain Sorghum 5500 lb | R207: A | S207: 55 | T207: 110 | V207: 81 | W207: 1.63 | Y207: 100 | Z207: 0.79 | AB207: g
P208: 156 | Q208: Grain Sorghum 6000 lb | R208: A | S208: 60 | T208: 120 | V208: 81 | W208: 1.63 | Y208: 100 | Z208: 0.79 | AB208: g
P209: 157 | Q209: Grain Sorghum 6500 lb | R209: A | S209: 65 | T209: 130 | V209: 131 | W209: 2.13 | Y209: 120 | Z209: 0.95 | AB209: g
P210: 158 | Q210: Grain Sorghum 7000 lb | R210: A | S210: 70 | T210: 140 | V210: 131 | W210: 2.13 | Y210: 120 | Z210: 0.95 | AB210: g
P211: 159 | Q211: Grain Sorghum 7500 lb | R211: A | S211: 75 | T211: 150 | V211: 131 | W211: 2.13 | Y211: 120 | Z211: 0.95 | AB211: g
P212: 160 | Q212: Grain Sorghum 8000 lb | R212: A | S212: 80 | T212: 160 | V212: 131 | W212: 2.13 | Y212: 120 | Z212: 0.95 | AB212: g
P213: 161 | Q213: Grapes - Field Production | R213: A | S213: 12.5 | T213: 25 | V213: 31 | W213: 0.63 | Y213: 50 | Z213: 0.33 | AB213: g
P214: 162 | Q214: Guar | R214: A | S214: 10 | T214: 20 | V214: 81 | W214: 1.63 | Y214: 60 | Z214: 0.48 | AB214: g
P215: 163 | Q215: Hay Grazer (1 cutting or light grazing) | R215: A | S215: 40 | T215: 80 | V215: 55 | W215: 1.1 | Y215: 40 | Z215: 0.32 | AB215: g
P216: 164 | Q216: Hay Grazer (2 cuttings or moderate grazing) | R216: A | S216: 70 | T216: 140 | V216: 55 | W216: 1.1 | Y216: 120 | Z216: 0.96 | AB216: g
P217: 165 | Q217: Hay Grazer (3 cuttings or heavy grazing) | R217: A | S217: 100 | T217: 200 | V217: 105 | W217: 2.1 | Y217: 120 | Z217: 0.96 | AB217: g
P218: 166 | Q218: Hegari | R218: A | S218: 30 | T218: 60 | V218: 80 | W218: 1.6 | Y218: 60 | Z218: 0.48 | AB218: g
P219: 167 | Q219: Huban Clover | R219: A | S219: 10 | T219: 20 | V219: 80 | W219: 1.6 | Y219: 60 | Z219: 0.48 | AB219: l
P220: 168 | Q220: Johnson Grass 1 cutting or light grazing | R220: A | S220: 40 | T220: 80 | V220: 55 | W220: 1.1 | Y220: 40 | Z220: 0.32 | AB220: g
P221: 169 | Q221: Johnson Grass 2 cuttings or moderate grazing | R221: A | S221: 70 | T221: 140 | V221: 55 | W221: 1.1 | Y221: 40 | Z221: 0.32 | AB221: g
P222: 170 | Q222: Johnson Grass 3 cuttings or heavy grazing | R222: A | S222: 100 | T222: 200 | V222: 105 | W222: 2.1 | Y222: 120 | Z222: 0.96 | AB222: g
... 141 more rows

Sheet break (hidden)
A1: 1 | B1: 2 | C1: 3 | D1: 4 | E1: 5 | F1: 6 | G1: 7 | H1: 8 | I1: 9 | J1: 10 | K1: 11 | L1: 12 | M1: 13 | N1: 14
D2: P Very Low | F2: P Low | H2: P Medium | J2: P High | L2: P Very High | N2: Excessive
A3: 2 | B3: All Crops | C3: 0 | D3: 0 | E3: 5 | F3: 6 | G3: 4 | H3: 11 | I3: 8 | J3: 20 | K3: 29 | L3: 50 | M3: 39 | N3: 90
B4: Actual P Breakpoints | D4: 0 | E4: 5 | F4: 6 | G4: 10.4 | H4: 11 | I4: 19 | J4: 20 | K4: 49 | L4: 50 | M4: 89.4 | N4: 90
B5: Actual K Breakpoints | K5: 149 | L5: 150

Sheet A&M (hidden)
A1: 1 | B1: 2 | C1: 3 | D1: 4 | E1: 5 | F1: 6 | G1: 7 | H1: 8 | I1: 9 | J1: 10 | K1: 11 | L1: 12 | M1: 13 | N1: 14
D2: P Very Low | F2: P Low | H2: P Medium | J2: P High | L2: P Very High | N2: Excessive
A3: 2 | B3: All Crops | C3: 0 | D3: 0 | E3: 5 | F3: 6 | G3: 4 | H3: 11 | I3: 8 | J3: 20 | K3: 29 | L3: 50 | M3: 39 | N3: 90
B4: Actual P Breakpoints | D4: 0 | E4: 5 | F4: 6 | G4: 10.4 | H4: 11 | I4: 19 | J4: 20 | K4: 49 | L4: 50 | M4: 89.4 | N4: 90
B5: Actual K Breakpoints | K5: 149 | L5: 150
